Workbook

Sheet Data Input
A1: STATE OF ARIZONA
A2: CLOSING PACKAGE
A3: N - GASB 87 LEASES - Form 72a
A4: Collection Form for FY2025 Receivable Leases
A5: (State as LESSOR)
A6: ----- Due Date 8/8/2025 -----
A7: This FILLABLE form is designed to capture your agency's GASB 87 lease information for NEW leases entered into during FY2025.
A9: Reporting background:
A10: Please complete this template for every lease that qualifies as a GASB 87 Lease AND has a start date during FY2025 (July 1, 2024 - June 30, 2025). | B10: Closing Package Information - Section N - Leases
A12: For example:
A13: - Receivable leases where the State is the LESSOR,
A14: - Meets scope requirements and is not listed as specifically EXCLUDED,
A15: - Total payments to be received are greater than the Materiality Threshold of $500,000, and
A16: - Has a Maximum Possible Lease Term of more than 12 months.
A17: You should have completed Form 72 - "Decision Form for Lessor" first to verify qualifications (link at right):
A19: STEPS:
A20: 1. Collect the Lease Contracts and other information for all NEW Leases entered into during FY2025 and document whether they qualify as GASB 87 Leases (through the Lessor Decision Form). If any leases qualify as GASB 87 Leases, then this Lease Collection Form must be completed.
A23: 2. Save a copy of this Lease Collection Form and rename with your Agency's 3 letter ID
A24: (for example, "ADA Form 72a - Collection Form for Lessor - FY2025").
A25: 3. Complete the following sections by entering in the applicable information for each lease within a separate column (starting with column C). There are 10 columns provided. If you have more than 10 GASB 87 Receivable Leases, duplicate the form & label as needed (1 of 2, 2 of 2, or 1 of 3, 2 of 3, 3 of 3, etc).
A28: 4. Maintain all documentation and supporting workpapers to support your conclusion for audit purposes in a permanent file (i.e. Lease Contracts, Decision Form, and this Lease Collection Form).
A30: 5. Return a copy of this Lease Collection Form to the ACFR e-mail address at right by the Due Date listed above (copy and paste address). | B30: ACFR@azdoa.gov
A33: Note 1 - The Blue highlighted cells are for manual or drop-down input. The Orange highlighted cells contain formulas and will automatically fill. Please do not change the orange cells.
A35: Note 2 - Do not insert new columns or rows. As noted above, if you have more than 10 leases, duplicate the form instead of inserting new columns.
A37: Note 3 - Several sections below mention the criteria, 'Reasonably Certain'. To be reasonably certain means that there is a greater than probable chance an event will take place.
A40: For details on GASB 87, see the GASB 87 Statement on the GASB website, link at right: | B40: GASB Statement 87
A42: For additional questions on any of the above steps (including filling out this form), please send questions to the ACFR e-mail address above.
A45: I. Agency Information
A46: (Only need to fill out this section once for entire worksheet)
A47: Agency three letter ID in AZ360 (Example: Arizona Department of Administration = ADA):
A48: Preparer Name:
A49: Preparer E-mail:
A50: Preparer Phone:
A51: Date Completed:
A52: Approved by:
A54: How many GASB 87 Receivable Leases were entered into during FY2024? If more than 10, the agency will need to fill out multiple forms (label them 1 of 2, 2 of 2, or 1 of 3, 2 of 3, 3 of 3, etc)
A57: II. General Information | B57: Example (complex) | C57: Lease # 1 | D57: Lease # 2 | E57: Lease # 3 | F57: Lease # 4 | G57: Lease # 5 | H57: Lease # 6 | I57: Lease # 7 | J57: Lease # 8 | K57: Lease # 9 | L57: Lease # 10
A58: 1. Contract # (If unknown or unassigned, please create your own.) | B58: ABC 123
A60: 2. Name of the party you are leasing to (Lessee): | B60: ABC Land Development
A62: 3. Short Description of the Leased Asset or Address of the Leased Property
A63: a. If leasing a building/office space, land or right-of-way, enter the full address of the leased property. For equipment or something else, provide a description of the leased asset (for example: HP 4700 Copier on 3rd floor or 2021 Ford F150 truck, VIN #ABC123). | B63: 1234 Beaver St, Suite 300, Mayberry, AZ 86123
A67: b. What is the purpose of the lease?
A68: This is a required disclosure per GASB 87. For example, Land Kease on Lake Pleasant for boat rentals, or Right-of-way Lease for water/sewage system
A71: 4. Is the lease any of the following (for disclosure only):
A72: a. Sublease - initially the State agency leases an asset from a third party, but then leases the asset out to another party. | B72: No
A73: Example: A state agency leases a floor in a building from a vendor and rents a room to another entity. The State acts as both Lessee and Lessor.
A75: Since the other parties involved are 2 different entities, both sides of the lease must be reported separately and should NOT be netted together.
A77: b. Sale-leaseback - the sale of a property with an agreement that the property will then be leased back. | B77: No
A78: Example: A non-state entity sells a piece of property to a state agency with the contractual agreement that the non-state entity will lease the asset back. The state agency is the Purchasor and the Lessor.
A80: c. Lease-leaseback - the lease of a property to a tenant with the agreement that the property will then be leased back from that same party. | B80: No
A82: Example: A state agency owns a piece of land and leases it to a non-state company. The agreement obligates the company to build an office and lease it back to the state agency. The State acts as both Lessee and Lessor.
A84: In this case, since the other party is the same entity, the lease proceeds and payouts will be netted for reporting purposes.
A85: If any of the 3 questions above are answered Yes, you will be contacted by the GAAP Group for additional info.
A87: 5. Is the entire lease payment received recorded 100% into a single Chart of Accounts string (COA) or Divided between Funds or Agencies? | B87: Divided - Fill out Gen Extra Info Tab
A89: If the receipt of payment is divided, then please switch to the "Split Info" Tab to fill out the deposit split info (click on hyperlink to the right for correct corresponding Lease # column). | B89: Example - Split Info | C89: Lease # 1 - Split Info | D89: Lease # 2 - Split Info | E89: Lease # 3 - Split Info | F89: Lease # 4 - Split Info | G89: Lease # 5 - Split Info | H89: Lease # 6 - Split Info | I89: Lease # 7 - Split Info | J89: Lease # 8 - Split Info | K89: Lease # 9 - Split Info | L89: Lease # 10 - Split Info
A91: If the receipt of payment is recorded into a single COA, please provide the following COA Elements below. REQUIRED elements are starred (*). Use any other COA indicated below that will help identify the receipt of payments for each lease.
A93: Agency * | B93: see Split Info Tab
A94: Fund *
A95: Revenue Source *
A96: Appropriation
A97: Unit
A98: Task
A99: Sub Task
A100: Program
A101: Phase
A102: Program Period
A104: III. Asset Information
A105: 6. Asset type that is being leased out
A106: Using the drop down list, select the Asset Type that is being leased. If the leased asset type is not listed, please choose a description that is closest to your leased asset (or contact the GAAP Group for further assistance). | B106: Leased Constructed Buildings (Office Space)
A109: 7. Return of the Asset
A110: Does the contract require the lessee to return the asset in its original or enhanced condition? | B110: No
A111: If above question is answered Yes, then GASB 87 requires that the asset accumulate NO DEPRECIATION during the lease period as it is expected to be returned in the original or enhanced condition. If, however, there is a residual value guarantee set at a value lower than its original value at commencement of the lease, depreciation should still be calculated. If the asset is Land, then there should not be any depreciation regardless.
A116: 8. What is the asset number listed on the AZ360 Financial System (if not in AZ360, please explain)? | B116: AD1000
A118: IV. Deferred Inflow of Resources
A119: 9. Measurement of Deferred Inflow of Resources
A120: Per GASB 87, Deferred Inflow of Resources =
A121: + Initial Lease Receivable (calculated in PV Calc tab)
A122: + Lease payments received from the lessee at or before start of lease that relate to future periods (see (a) below)
A123: - Lease incentives paid to the lessee at or before start of lease (see (b) below)
A124: a. Enter the amount the Lessee paid to the State (Lessor) at or before the start of the lease that relates to future periods. | B124: 302000
A125: - For example, the final month's rent
A126: - Do NOT include downpayments (above first required payment) as those are not related to a future period
A127: b. Enter the amount the State (Lessor) provided as incentives at or before the start of the lease. | B127: 15000
A128: - For example, paying a preexisting lease obligation to a third party in order to gain the lease, or
A129: - Reimbursements of lessee's costs (installation costs, moving costs, etc)
A131: 10. If any amounts are entered in 9(a) or (b), please describe (indicate which question you are answering if more than one) | B131: (a) Last month's rent, (b) Reimbursed moving costs to Lessee
A133: 11. If any amounts are entered in 9(a) or (b), provide the COA Elements below where the payment from the lessee (or incentive paid by the State (Lessor)) was posted. REQUIRED elements are starred (*):
A135: NOTE - if more than one, indicate with the corresponding letter (i.e. Fund: (a) 1000, (b) AD1200)
A136: Agency * | B136: (a & b) ADA
A137: Fund * | B137: (a & b) 1000
A138: Object or Revenue Source (please indicate which one) * | B138: (a) R - 4632, (b) O - 7599
A139: Appropriation
A140: Unit
A141: Task
A142: Sub Task
A143: Program
A144: Phase
A145: Program Period
A146: Dept Object
A148: V. Lease Term
A149: 12. Lease commencement date
A150: Lease Start Date - because this form is specifically for New leases entered into during FY2025, the dates should be between July 1, 2024 and June 30, 2025. | B150: 2024-10-01
A153: 13. Contracted lease term
A154: Lease End Date - Enter the date the contracted lease term ends. | B154: 2034-09-30
A155: Lease Term in months (will automatically fill) - HIDE THIS LINE IN FINAL VERSION | B155: =ROUND(DATEDIF((B150),B154,"M"),0)+1 -> 120 | C155: =ROUND(DATEDIF((C150),C154,"M"),0)+1 -> 1 | D155: =ROUND(DATEDIF((D150),D154,"M"),0)+1 -> 1 | E155: 1 | F155: 1 | G155: 1 | H155: 1 | I155: 1 | J155: 1 | K155: 1 | L155: 1
A157: 14. Options to extend term
A158: If lease extensions are available in the contract, AND the agency believes the lessee is reasonably certain to exercise it, enter # of months available to extend the lease. | B158: 60
A161: 15. Lease End Date including Extensions (will automatically fill). | B161: =EDATE(B154,B158) -> 2039-09-30 | C161: =EDATE(C154,C158) -> 00:00:00 | D161: =EDATE(D154,D158) -> 00:00:00 | E161: 00:00:00 | F161: 00:00:00 | G161: 00:00:00 | H161: 00:00:00 | I161: 00:00:00 | J161: 00:00:00 | K161: 00:00:00 | L161: 00:00:00
A163: 16. Total Lease Term including Extensions in Months (will automatically fill). | B163: =B155+B158 -> 180 | C163: 1 | D163: =D155+D158 -> 1 | E163: 1 | F163: 1 | G163: 1 | H163: 1 | I163: 1 | J163: 1 | K163: 1 | L163: 1
A165: 17. Frequency of lease payments
A166: Enter how often lease payments are made (Monthly, Quarterly, Semi-Annually, Annually). If payments are Less Often than Annually, choose Annually from the dropdown list here (frequency must be at least Annually for Present Value Calculation to work). There is a space in the PV Calc tab to describe the payment frequency if Less Often than Annually (#1f). | B166: Semi-annually
A169: # of pmts/yr - HIDE THIS LINE IN FINAL VERSION | B169: =IF(B166="Weekly",52,IF(B166="Monthly",12,IF(B166="Quarterly",4,IF(B166="Semi-Annually",2,1)))) -> 2 | C169: =IF(C166="Weekly",52,IF(C166="Monthly",12,IF(C166="Quarterly",4,IF(C166="Semi-Annually",2,1)))) -> 1 | D169: 1 | E169: =IF(E166="Weekly",52,IF(E166="Monthly",12,IF(E166="Quarterly",4,IF(E166="Semi-Annually",2,1)))) -> 1 | F169: 1 | G169: 1 | H169: 1 | I169: 1 | J169: 1 | K169: 1 | L169: 1
A171: 18. Number of Payments - How many payments from lease start date (#12) to lease end date including extensions (#15)?
A172: - If payments are monthly, this answer will most likely be the same as the calculated number of months. Please calculate carefully if payments are not monthly. | B172: 30
A174: - If payments are Less Often than Annually, list the # of years of the lease term rather than the total # of payments (e.g. payment frequency every 5 years with a 20 year term would have a total of 4 payments, but enter 20 here instead of 4). Again, this is necessary for the Present Value Calculation to work. If this is the case, read PV Calc instructions (#1g) carefully.
A178: 19. Was the first lease payment received at the beginning or at the end of the first payment period?
A179: - A period is the length of time between payments (see #17 freequency of payments) | B179: Begin
A180: - For example, lease began on 4/01 with monthly payments and first payment was due 4/30, then it would be the end of the first payment period.
A182: - For a quarterly period, payment within first 45 days would be beginning of the period.
A183: Coding for Formulas - Begin = 1, End = 0 - HIDE THIS LINE IN FINAL VERSION | B183: =IF(B179="Begin",1,0) -> 1 | C183: =IF(C179="Begin",1,0) -> 0 | D183: 0 | E183: =IF(E179="Begin",1,0) -> 0 | F183: 0 | G183: 0 | H183: 0 | I183: 0 | J183: 0 | K183: 0 | L183: 0
A185: 20. When is the first payment due (most likely would be within FY2025)? | B185: 2024-10-15
A187: VI. Lease Receivable
A188: Lease payment to be received - PLEASE SEPARATE PAYMENTS TO BE RECEIVED BETWEEN #21, #22 & #23 as much as possible:
A189: 21. Fixed Lease payment - Enter FIRST Fixed Lease Payment Amount here
A190: To calculate the Fixed Lease Payment: | B190: 282000
A191: (a) Enter the amount of the fixed lease portion of the payment. If the payment includes utilities, taxes, service costs, etc, and it is not reasonable to separate these portions from the total payment, then enter the total lease payment. If the above listed items are separated in the contract, they should not be included in the lease payment here but detailed below.
A195: (b) In addition, also include "Fixed In-Substance Fees" with the lease payment (see definition below under variable payments).
A197: (c) For payments that depend on an index or a rate (such as the Consumer Price Index or a market interest rate), the payment should be initially measured using the index or rate as of the start of the lease.
A199: Because payments may not remain the same throughout the lease term, fill out the Payment Schedule on the PV Calc tab. A space is provided (#1f) to describe how often payments increase, formulas, appraisal requirements, etc.
A202: 22. Variable Usage Fees over and above Fixed In-Substance Fees (Do NOT include variable fees on PV Calc Tab):
A203: Variable Usage Fees are based on future unknwn factors such as water usage, wattage produced, gross receipts over a certain period of time, etc. | B203: Water usage calculated by # of cubic feet - billed twice annually
A205: - "Fixed in-Substance Fees" are the Mimimum Usage Costs of a variable usage fee and should be included in the fixed lease payment portion above.
A207: - For Example, if a retail store has a 0.01% of gross receipts variable monthly fee, but minimum is $1,500, then $1,500 is the "Fixed In-Substance Fee" and should be added to fixed lease portion above, and the variable answer here would be "0.01% of gross receipts over $150,000 monthly due to $1,500 minimum" ($1,500 is equal to 0.01% * $150,000).
A210: - For disclosure purposes, please describe how the variable useage fee is determined.
A212: 23. Utilities, Taxes, Service costs (janitorial or maintenance agreements), or Other additional charges (do NOT include as part of Fixed Lease Payments on PV Calc tab)
A214: a. Enter the amount for any additional charges identified, if paid to the lessor and is separately identified in the lease agreement. | B214: =282000*0.025 -> 7050
A216: b. Please briefly describe the additional charges. | B216: 2.5% occupancy tax
A218: 24. Residual Value Guarantee:
A219: a. Does the lease contain a residual value guarantee?
A220: For example, does the lease specify the asset must be returned in a certain condition to avoid a penalty, or must have a certain minimum fair value upon return to the lessor? | B220: No
A223: b. If so, is the residual value guarantee payment fixed in substance? (i.e. not contingent on a future event).
A224: For example, a residual value guarantee could have both a minimum amount to be paid upon termination of the lease plus a contingent fee based on the future value of the asset upon termination of the lease. If the residual value guarantee has no minimum, but is fully contingent on the future value, then it is not fixed in substance and should NOT be included in the Lease Receivable calculation. | B224: N/A
A228: This is different than on a payable lease where the inclusion in the liability is based on a reasonably certain occurence, not a fixed in substance occurrence.
A230: If Yes, then please enter the amount of the Fixed in Substance Residual Value Guarantee on the PV Calc Tab.
A232: 25. Lease incentives (during lease term):
A233: a. Does the lease agreement contain lease incentives that will occur AFTER the start of the lease term? | B233: Yes
A234: - For example, Abated or Free Rent periods,
A235: - Reductions in rent,
A236: - Bonus amounts paid from the lessor to the lessee, etc?
A238: b. If Yes, please describe: | B238: Free Rent Period for pmt due 10/15/2025
A239: Please read instructions on PV Calc tab carefully on how to include lease incentives in the Payment Schedule (#1d & 1e).
A241: 26. Estimated Uncollectible Amounts
A242: Based on current economic factors, lessee's credit rating, historical information from this or other lessees, does the agency feel that there may be uncollectible amounts related to this lease agreement? | B242: Yes - Fill out PV Calc Tab
A244: If Yes, then please enter the Allowance for Uncollectible Leases on the PV Calc Tab.
A246: VII. Interest Rate
A247: 27. Enter the interest rate for lease (with four digits past the decimal) using one of the three methods listed below:
A248: a. If the interest rate is specifically identified in the contract (explicit rate), use this rate.
A249: b. If the explicit rate is unknown, there may be an implicit rate (please see Implicit Rate info tab for additional information and a place to enter the information to calculate it).
A251: c. If both the explicit interest rate and implicit rate are unknown, identify the interest rate in the table below using the lease term (total lease term in months is copied here from #16 above for ease of reference). | B251: =B163 -> 180 | C251: 1 | D251: 1 | E251: 1 | F251: 1 | G251: 1 | H251: 1 | I251: 1 | J251: 1 | K251: 1 | L251: 1
A253: For example: If initial contract term was 5 years (60 months) plus a 4-year (48 month) extension, for a total of 9 years (108 months) use the Long-Term rate below. | B253: 0.033234
A260: The interest rates have been updated for
A261: FY2025 & will be reassessed each year.
A262: Short-Term in months = 0 - 59 months
A263: Mid-Term in months = 60 - 107 months
A264: Long-Term in months = 108 months or longer
A266: 28. Periodic Interest Rate - based on frequency of payments (will automatically fill) | B266: =ROUND(B253/B169,6) -> 0.016617 | C266: 0 | D266: 0 | E266: 0 | F266: 0 | G266: 0 | H266: 0 | I266: 0 | J266: 0 | K266: 0 | L266: 0
A268: VIII. Calculate the Lease Liability
A269: 29. Fill out the Lease Payment Schedule on the "PV Calc" tab corresponding to the correct Lease #.
A270: The Present Value of the Lease Receivable, Amortization Table and Deferred Inflow of Resources will be calculated in each respective PV Calc tab. These are calculated with macros, and are not required to be completed by the agencies. | B270: Example (complex) | C270: Lease 1 - PV Calc | D270: Lease 2 - PV Calc | E270: Lease 3 - PV Calc | F270: Lease 4 - PV Calc | G270: Lease 5 - PV Calc | H270: Lease 6 - PV Calc | I270: Lease 7 - PV Calc | J270: Lease 8 - PV Calc | K270: Lease 9 - PV Calc | L270: Lease 10 - PV Calc
A272: - At a minimum, the Lease Payment Schedule must be completed.

Sheet Split Info
A1: GASB 87 Lease Collection Form - Split Info - for Leases receiving payments into multiple COAs
A3: If the lease payments received are recorded within more than one Chart of Accounts (COA) string, please complete the information below.
A5: Note 1 - The blue highlighted cells are for manual or drop-down input. The orange highlighted cells contain formulas and will automatically fill. Please do not change the orange cells.
A7: Note 2 - When payments are split between multiple COAs, please ONLY provide split information for the Fixed amount to be received. Please exclude any variable payments or payments for services, maintenance, taxes, etc that are identified separately within the lease contract.
A10: Use the SAME COLUMN here as was used in the "Data Input" tab. | B10: Example | C10: Lease # 1 | D10: Lease # 2 | E10: Lease # 3 | F10: Lease # 4 | G10: Lease # 5 | H10: Lease # 6 | I10: Lease # 7 | J10: Lease # 8 | K10: Lease # 9 | L10: Lease # 10
A11: Contract # from Data Input tab (will fill automatically) | B11: ='Data Input'!B58 -> ABC 123 | C11: ='Data Input'!C58 -> 0 | D11: ='Data Input'!D58 -> 0 | E11: ='Data Input'!E58 -> 0 | F11: ='Data Input'!F58 -> 0 | G11: ='Data Input'!G58 -> 0 | H11: ='Data Input'!H58 -> 0 | I11: ='Data Input'!I58 -> 0 | J11: ='Data Input'!J58 -> 0 | K11: ='Data Input'!K58 -> 0 | L11: ='Data Input'!L58 -> 0
A13: Is the payment received divided by a Percentage (%), or a Specific Dollar ($) Amount (i.e. 50% posted to one COA string, and 50% posted to another; or first $1,000 posted to one COA string and the rest posted to another)? | B13: Percentage (%) Split
A15: Based on your answer, please fill out the proper section below (Percentage Split or Dollar Amount Split)
A17: Percentage (%) Split:
A18: How many different sets of COAs are there? | B18: 2
A20: 1. Percentage of payment received for First COA | B20: 0.7
A21: Please provide COA below. REQUIRED elements are starred (*). Use any other COA indicated below that will help identify the payments received for each lease.
A23: 1a. Agency * | B23: ADA
A24: 1b. Fund * | B24: AD1234
A25: 1c. Revenue Source * | B25: 4632
A26: 1d. Appropriation
A27: 1e. Unit
A28: 1f. Task
A29: 1g. Sub Task
A30: 1h. Program
A31: 1i. Phase
A32: 1j. Program Period
A34: 2. Percentage of payment received for Second COA | B34: 0.3
A35: Please provide COA below. REQUIRED elements are starred (*). Use any other COA indicated below that will help identify the payments received for each lease.
A37: 2a. Agency * | B37: DCA
A38: 2b. Fund * | B38: DC4567
A39: 2c. Revenue Source * | B39: 4632
A40: 2d. Appropriation
A41: 2e. Unit
A42: 2f. Task
A43: 2g. Sub Task
A44: 2h. Program
A45: 2i. Phase
A46: 2j. Program Period
A48: 3. Percentage of payment received for Third COA
A49: Please provide COA below. REQUIRED elements are starred (*). Use any other COA indicated below that will help identify the payments received for each lease.
A51: 3a. Agency *
A52: 3b. Fund *
A53: 3c. Revenue Source *
A54: 3d. Appropriation
A55: 3e. Unit
A56: 3f. Task
A57: 3g. Sub Task
A58: 3h. Program
A59: 3i. Phase
A60: 3j. Program Period
A62: 4. Percentage of payment received for Fourth COA
A63: Please provide COA below. REQUIRED elements are starred (*). Use any other COA indicated below that will help identify the payments received for each lease.
A65: 4a. Agency *
A66: 4b. Fund *
A67: 4c. Revenue Source *
A68: 4d. Appropriation
A69: 4e. Unit
A70: 4f. Task
A71: 4g. Sub Task
A72: 4h. Program
A73: 4i. Phase
A74: 4j. Program Period
A75: 4k. Dept Object
A77: Specific Dollar ($) Amount Split:
A78: How many different sets of COAs are there?
A80: 1. Amount of payment received for First COA
A81: Please provide COA below. REQUIRED elements are starred (*). Use any other COA indicated below that will help identify the payments received for each lease.
A83: 1a. Agency *
A84: 1b. Fund *
A85: 1c. Revenue Source *
A86: 1d. Appropriation
A87: 1e. Unit
A88: 1f. Task
A89: 1g. Sub Task
A90: 1h. Program
A91: 1i. Phase
A92: 1j. Program Period
A94: 2. Amount of payment received for Second COA
A95: Please provide COA below. REQUIRED elements are starred (*). Use any other COA indicated below that will help identify the payments received for each lease.
A97: 2a. Agency *
A98: 2b. Fund *
A99: 2c. Revenue Source *
A100: 2d. Appropriation
A101: 2e. Unit
A102: 2f. Task
A103: 2g. Sub Task
A104: 2h. Program
A105: 2i. Phase
A106: 2j. Program Period
A108: 3. Amount of payment received for Third COA
A109: Please provide COA below. REQUIRED elements are starred (*). Use any other COA indicated below that will help identify the payments received for each lease.
A111: 3a. Agency *
A112: 3b. Fund *
A113: 3c. Revenue Source *
A114: 3d. Appropriation
A115: 3e. Unit
A116: 3f. Task
A117: 3g. Sub Task
A118: 3h. Program
A119: 3i. Phase
A120: 3j. Program Period
A122: 4. Amount of payment received for Fourth COA
A123: Please provide COA below. REQUIRED elements are starred (*). Use any other COA indicated below that will help identify the payments received for each lease.
A125: 4a. Agency *
A126: 4b. Fund *
A127: 4c. Revenue Source *
A128: 4d. Appropriation
A129: 4e. Unit
A130: 4f. Task
A131: 4g. Sub Task
A132: 4h. Program
A133: 4i. Phase
A134: 4j. Program Period
A135: 4k. Dept Object

Sheet Implicit Rate info
A1: GASB 87 Lease Collection Form - Calculating an Implicit Rate on a Lease
A3: If an interest rate is not explicitely stated within the lease contract, there may be an implicit rate, which can be calculated if the information requested below is available.
A6: In addition to the information provided within the Data Input tab (see orange auto-filled cells below), check the lease contract for availability of the 3 additional data items requested below to determine the Implicit Rate.
A9: All 3 items requested below are needed to calculate the Implicit Rate. If this information is unavailable, then use the Discount Rates provided on the Data Input tab (yellow highlighted table).
A12: If ALL of the information requested below is available for a lease, please enter the information within the correct Lease # column below.
A14: Note - The blue highlighted cells are for manual input. The orange highlighted cells contain formulas and will automatically fill. Please do not change the orange cells.
A16: Use the SAME COLUMN here as was used in the "Data Input" tab. | B16: Example | C16: Lease # 1 | D16: Lease # 2 | E16: Lease # 3 | F16: Lease # 4 | G16: Lease # 5 | H16: Lease # 6 | I16: Lease # 7 | J16: Lease # 8 | K16: Lease # 9 | L16: Lease # 10
A17: Contract # from Data Input tab (will fill automatically) | B17: ='Data Input'!B58 -> ABC 123 | C17: ='Data Input'!C58 -> 0 | D17: ='Data Input'!D58 -> 0 | E17: ='Data Input'!E58 -> 0 | F17: ='Data Input'!F58 -> 0 | G17: ='Data Input'!G58 -> 0 | H17: ='Data Input'!H58 -> 0 | I17: ='Data Input'!I58 -> 0 | J17: ='Data Input'!J58 -> 0 | K17: ='Data Input'!K58 -> 0 | L17: ='Data Input'!L58 -> 0
A18: Cash Flows at Beginning or End (Section V, #19 of Data Input tab) | B18: ='Data Input'!B179 -> Begin | C18: ='Data Input'!C179 -> 0 | D18: ='Data Input'!D179 -> 0 | E18: ='Data Input'!E179 -> 0 | F18: ='Data Input'!F179 -> 0 | G18: ='Data Input'!G179 -> 0 | H18: ='Data Input'!H179 -> 0 | I18: ='Data Input'!I179 -> 0 | J18: ='Data Input'!J179 -> 0 | K18: ='Data Input'!K179 -> 0 | L18: ='Data Input'!L179 -> 0
A19: Number of payments (Section V, #18) | B19: ='Data Input'!B172 -> 30 | C19: ='Data Input'!C172 -> 0 | D19: ='Data Input'!D172 -> 0 | E19: ='Data Input'!E172 -> 0 | F19: ='Data Input'!F172 -> 0 | G19: ='Data Input'!G172 -> 0 | H19: ='Data Input'!H172 -> 0 | I19: ='Data Input'!I172 -> 0 | J19: ='Data Input'!J172 -> 0 | K19: ='Data Input'!K172 -> 0 | L19: ='Data Input'!L172 -> 0
A20: Frequency of payments (Section V, #17) | B20: ='Data Input'!B166 -> Semi-annually | C20: ='Data Input'!C166 -> 0 | D20: ='Data Input'!D166 -> 0 | E20: ='Data Input'!E166 -> 0 | F20: ='Data Input'!F166 -> 0 | G20: ='Data Input'!G166 -> 0 | H20: ='Data Input'!H166 -> 0 | I20: ='Data Input'!I166 -> 0 | J20: ='Data Input'!J166 -> 0 | K20: ='Data Input'!K166 -> 0 | L20: ='Data Input'!L166 -> 0
A21: Date of first payment (Section V, #20) | B21: ='Data Input'!B185 -> 2024-10-15 | C21: ='Data Input'!C185 -> 00:00:00 | D21: ='Data Input'!D185 -> 00:00:00 | E21: ='Data Input'!E185 -> 00:00:00 | F21: ='Data Input'!F185 -> 00:00:00 | G21: ='Data Input'!G185 -> 00:00:00 | H21: ='Data Input'!H185 -> 00:00:00 | I21: ='Data Input'!I185 -> 00:00:00 | J21: ='Data Input'!J185 -> 00:00:00 | K21: ='Data Input'!K185 -> 00:00:00 | L21: ='Data Input'!L185 -> 00:00:00
A22: Lease Start Date (Section V, #12) | B22: ='Data Input'!B150 -> 2024-10-01 | C22: ='Data Input'!C150 -> 00:00:00 | D22: ='Data Input'!D150 -> 00:00:00 | E22: ='Data Input'!E150 -> 00:00:00 | F22: ='Data Input'!F150 -> 00:00:00 | G22: ='Data Input'!G150 -> 00:00:00 | H22: ='Data Input'!H150 -> 00:00:00 | I22: ='Data Input'!I150 -> 00:00:00 | J22: ='Data Input'!J150 -> 00:00:00 | K22: ='Data Input'!K150 -> 00:00:00 | L22: ='Data Input'!L150 -> 00:00:00
A23: Lease End Date including Extensions (Section V, #15) | B23: ='Data Input'!B161 -> 2039-09-30 | C23: ='Data Input'!C161 -> 00:00:00 | D23: ='Data Input'!D161 -> 00:00:00 | E23: ='Data Input'!E161 -> 00:00:00 | F23: ='Data Input'!F161 -> 00:00:00 | G23: ='Data Input'!G161 -> 00:00:00 | H23: ='Data Input'!H161 -> 00:00:00 | I23: ='Data Input'!I161 -> 00:00:00 | J23: ='Data Input'!J161 -> 00:00:00 | K23: ='Data Input'!K161 -> 00:00:00 | L23: ='Data Input'!L161 -> 00:00:00
A25: 1. Fair value of the asset at commencement
A27: 2. Lessor's expected fair value of the asset at the end of the lease term
A29: 3. Any initial direct costs that the lessor incurs
A31: IF THE IMPLICIT RATE INFO IS FILLED OUT ABOVE, please enter "See Implicit Rate Info tab" within the interest rate cell (Sec VII, #27) on the Data Input tab.
A33: With the information provided above, the GAO office will calculate the Implicit Rate and the Present Value of the Lease.

Sheet How to Enable Macros
A1: YOUR EXCEL TRUST CENTER SETTINGS MUST BE MACRO-ENABLED TO RUN THE MACROS IN THIS FILE.
A2: (This file was created in Excel Version 2016)
A3: To enable settings:
A4: Go to File > Options > Trust Center > Trust Center Settings…
A5: Enable all macros and trust access to the VBA project object model as shown below.

Sheet Example - PV Calc
A1: Present Value Calculations tab - Example (column B) | B1: Contract # | C1: ='Data Input'!B58 -> ABC 123 | E1: Present Value Table | J1: Amortization Table
A2: Periodic Interest Rate (Section VII, #27-28 from Data Input tab) | B2: ='Data Input'!B266 -> 0.016617 | E2: Period | F2: Payment Amount | G2: Present Value | J2: Period | K2: Date | L2: Beginning Balance | M2: Payment | N2: Principal | O2: Interest | P2: Ending Balance
A3: Cash Flows at Beginning or End (Section V, #19) | B3: ='Data Input'!B179 -> Begin | C3: Important: | E3: 1 | F3: 282000 | G3: =F3 / (((1+$B$2)) ^ (E3-1)) -> 282000 | J3: 1 | K3: =B6 -> 2024-10-15 | L3: =ROUND(B25,2) -> 6569840.83 | M3: 282000 | N3: =M3-O3 -> 282000 | O3: 0 | P3: =L3-N3 -> 6287840.83
A4: Number of payments (Section V, #18) | B4: ='Data Input'!B172 -> 30 | C4: Do not insert/delete/move | E4: 2 | F4: 282000 | G4: 277390.6004 | J4: 2 | K4: =EDATE($B$6,6) -> 2025-04-15 | L4: =P3 -> 6287840.83 | M4: 282000 | N4: 177514.95 | O4: =ROUND(L4*$B$2,2) -> 104485.05 | P4: 6110325.88
A5: Frequency of payments (Section V, #17) | B5: ='Data Input'!B166 -> Semi-annually | C5: cells B2:B8 | E5: 3 | F5: 282000 | G5: 272856.5432 | J5: 3 | K5: =EDATE($B$6,12) -> 2025-10-15 | L5: 6110325.88 | M5: 282000 | N5: 180464.71 | O5: 101535.29 | P5: 5929861.17
A6: Date of first payment (Section V, #20) | B6: ='Data Input'!B185 -> 2024-10-15 | C6: (macros depend on them) | E6: 4 | F6: 282000 | G6: 268396.597 | J6: 4 | K6: =EDATE($B$6,18) -> 2026-04-15 | L6: 5929861.17 | M6: 282000 | N6: 183463.5 | O6: 98536.5 | P6: 5746397.67
A7: Lease Start Date (Section V, #12) | B7: ='Data Input'!B150 -> 2024-10-01 | E7: 5 | F7: 0 | G7: 0 | J7: 5 | K7: =EDATE($B$6,24) -> 2026-10-15 | L7: 5746397.67 | M7: 0 | N7: -95487.89 | O7: 95487.89 | P7: 5841885.56
A8: Lease End Date including Extensions (Section V, #15) | B8: ='Data Input'!B161 -> 2039-09-30 | E8: 6 | F8: 282000 | G8: 259694.2116 | J8: 6 | K8: =EDATE($B$6,30) -> 2027-04-15 | L8: 5841885.56 | M8: 282000 | N8: 184925.39 | O8: 97074.61 | P8: 5656960.17
E9: 7 | F9: 282000 | G9: 255449.4087 | J9: 7 | K9: =EDATE($B$6,36) -> 2027-10-15 | L9: 5656960.17 | M9: 282000 | N9: 187998.29 | O9: 94001.71 | P9: 5468961.88
A10: Fixed Lease Payment Receivable Schedule (Section VI, #21 & see instructions below): | B10: Amount | C10: # of Payments | E10: 8 | F10: 282000 | G10: 251273.9889 | J10: 8 | K10: =EDATE($B$6,42) -> 2028-04-15 | L10: 5468961.88 | M10: 282000 | N10: 191122.26 | O10: 90877.74 | P10: 5277839.62
A11: Payment Amount #1 & # of Payments at this amount | B11: 282000 | C11: 4 | E11: 9 | F11: 282000 | G11: 247166.8178 | J11: 9 | K11: =EDATE($B$6,48) -> 2028-10-15 | L11: 5277839.62 | M11: 282000 | N11: 194298.14 | O11: 87701.86 | P11: 5083541.48
A12: Payment Amount #2 & # of Payments at this amount | B12: 0 | C12: 1 | E12: 10 | F12: 282000 | G12: 243126.7801 | J12: 10 | K12: =EDATE($B$6,54) -> 2029-04-15 | L12: 5083541.48 | M12: 282000 | N12: 197526.79 | O12: 84473.21 | P12: 4886014.69
A13: Payment Amount #3 & # of Payments at this amount | B13: 282000 | C13: 5 | E13: 11 | F13: 302000 | G13: 256113.9684 | J13: 11 | K13: =EDATE($B$6,60) -> 2029-10-15 | L13: 4886014.69 | M13: 302000 | N13: 220809.09 | O13: 81190.91 | P13: 4665205.6
A14: Payment Amount #4 & # of Payments at this amount | B14: 302000 | C14: 19 | E14: 12 | F14: 302000 | G14: 251927.686 | J14: 12 | K14: =EDATE($B$6,66) -> 2030-04-15 | L14: 4665205.6 | M14: 302000 | N14: 224478.28 | O14: 77521.72 | P14: 4440727.32
A15: Totals from add'l table below (if needed) | B15: =B88 -> 0 | C15: =C88 -> 1 | E15: 13 | F15: 302000 | G15: 247809.8301 | J15: 13 | K15: =EDATE($B$6,72) -> 2030-10-15 | L15: 4440727.32 | M15: 302000 | N15: 228208.43 | O15: 73791.57 | P15: 4212518.89
A16: Total Lease Payments (sum of all payment amounts * # of payments) | B16: =(B11*C11)+(B12*C12)+(B13*C13)+(B14*C14)+(B15) -> 8276000 | C16: =SUM(C11:C15) -> 30 | E16: 14 | F16: 302000 | G16: 243759.2821 | J16: 14 | K16: =EDATE($B$6,78) -> 2031-04-15 | L16: 4212518.89 | M16: 302000 | N16: 232000.57 | O16: 69999.43 | P16: 3980518.32
D17: Response per | E17: 15 | F17: 302000 | G17: 239774.9419 | J17: 15 | K17: =EDATE($B$6,84) -> 2031-10-15 | L17: 3980518.32 | M17: 302000 | N17: 235855.73 | O17: 66144.27 | P17: 3744662.59
A18: Other Payment Considerations: | B18: Residual Value Guar | C18: Allow for Uncollectible Amt | D18: Data Input tab | E18: 16 | F18: 302000 | G18: 235855.7273 | J18: 16 | K18: =EDATE($B$6,90) -> 2032-04-15 | L18: 3744662.59 | M18: 302000 | N18: 239774.94 | O18: 62225.06 | P18: 3504887.65
A19: Residual Value Guarantee if Fixed-in-Substance (Section VI, #24) | B19: 0 | D19: ='Data Input'!B224 -> N/A | E19: 17 | F19: 302000 | G19: 232000.5737 | J19: 17 | K19: =EDATE($B$6,96) -> 2032-10-15 | L19: 3504887.65 | M19: 302000 | N19: 243759.28 | O19: 58240.72 | P19: 3261128.37
A20: Allowance for Uncollectible Leases (Section VI, #26) | E20: 18 | F20: 302000 | G20: 228208.4342 | J20: 18 | K20: =EDATE($B$6,102) -> 2033-04-15 | L20: 3261128.37 | M20: 302000 | N20: 247809.83 | O20: 54190.17 | P20: 3013318.54
A21: For example, could be calculated as a percentage of the total lease pmt rcvbl above | C21: =B16*0.002 -> 16552 | D21: ='Data Input'!B242 -> Yes - Fill out PV Calc Tab | E21: 19 | F21: 302000 | G21: 224478.2786 | J21: 19 | K21: =EDATE($B$6,108) -> 2033-10-15 | L21: 3013318.54 | M21: 302000 | N21: 251927.69 | O21: 50072.31 | P21: 2761390.85
A22: Total Other Payment Considerations | B22: =SUM(B19:B21) -> 0 | E22: 20 | F22: 302000 | G22: 220809.0939 | J22: 20 | K22: =EDATE($B$6,114) -> 2034-04-15 | L22: 2761390.85 | M22: 302000 | N22: 256113.97 | O22: 45886.03 | P22: 2505276.88
A23: Total Undiscounted Cash Flows (Total Payments + Other Considerations) | B23: =B16+B22 -> 8276000 | E23: 21 | F23: 302000 | G23: 217199.8834 | J23: 21 | K23: =EDATE($B$6,120) -> 2034-10-15 | L23: 2505276.88 | M23: 302000 | N23: 260369.81 | O23: 41630.19 | P23: 2244907.07
C24: Important: | E24: 22 | F24: 302000 | G24: 213649.6669 | J24: 22 | K24: =EDATE($B$6,126) -> 2035-04-15 | L24: 2244907.07 | M24: 302000 | N24: 264696.38 | O24: 37303.62 | P24: 1980210.69
A25: Net Present Value (calculated after Macros below run) | B25: =SUM(G:G) -> 6569840.831 | C25: Do not insert/delete/move | E25: 23 | F25: 302000 | G25: 210157.4801 | J25: 23 | K25: =EDATE($B$6,132) -> 2035-10-15 | L25: 1980210.69 | M25: 302000 | N25: 269094.84 | O25: 32905.16 | P25: 1711115.85
C26: NPV must be cell B25 | E26: 24 | F26: 302000 | G26: 206722.3744 | J26: 24 | K26: =EDATE($B$6,138) -> 2036-04-15 | L26: 1711115.85 | M26: 302000 | N26: 273566.39 | O26: 28433.61 | P26: 1437549.46
A27: Additions/Subtractions for Deferred Inflow of Resources (Section IV, #9-11) | B27: ='Data Input'!B124-'Data Input'!B127 -> 287000 | C27: (macros depend on it) | E27: 25 | F27: 302000 | G27: 203343.4168 | J27: 25 | K27: =EDATE($B$6,144) -> 2036-10-15 | L27: 1437549.46 | M27: 302000 | N27: 278112.24 | O27: 23887.76 | P27: 1159437.22
A28: Deferred Inflow of Resources (calculated after Macros below run) | B28: =B25+B27 -> 6856840.831 | E28: 26 | F28: 302000 | G28: 200019.6896 | J28: 26 | K28: =EDATE($B$6,150) -> 2037-04-15 | L28: 1159437.22 | M28: 302000 | N28: 282733.63 | O28: 19266.37 | P28: 876703.59
E29: 27 | F29: 302000 | G29: 196750.2901 | J29: 27 | K29: =EDATE($B$6,156) -> 2037-10-15 | L29: 876703.59 | M29: 302000 | N29: 287431.82 | O29: 14568.18 | P29: 589271.77
A30: The Agency is not required to calculate the Present Value and/or enable Macros, | E30: 28 | F30: 302000 | G30: 193534.3301 | J30: 28 | K30: =EDATE($B$6,162) -> 2038-04-15 | L30: 589271.77 | M30: 302000 | N30: 292208.07 | O30: 9791.93 | P30: 297063.7
A31: but Steps 1 & 2 of the instructions below are REQUIRED to be completed. | E31: 29 | F31: 302000 | G31: 190370.9363 | J31: 29 | K31: =EDATE($B$6,168) -> 2038-10-15 | L31: 297063.7 | M31: 302000 | N31: 297063.7 | O31: =ROUND(L31*$B$2,2)-0.01 -> 4936.3 | P31: 9.313225746e-10
A32: After completing Steps 1 & 2, if desired to calculate the Present Value, complete Steps 3 - 8: | E32: 30 | F32: 0 | G32: 0 | J32: 30 | K32: =EDATE($B$6,174) -> 2039-04-15 | L32: 9.313225746e-10 | M32: 0 | N32: 0 | O32: =ROUND(L32*$B$2,2) -> 0 | P32: 9.313225746e-10
A34: Note 1: First make sure your Excel settings are correct - | B34: See How to Enable Macros tab
A35: Note 2: Please do not Insert, Delete, or Move any cells, columns or rows as this could cause the Macros to fail.
A36: Note 3: The Blue Cells in columns B & C are for manual input, and the Present Value Table will need to be adjusted in column F.
A37: The Orange cells in columns B & C will automatically fill. Also, the Present Value and Amortization Tables will be generated with the
A38: Macro buttons. Please do not make changes to the orange cells or anywhere within the Tables (except column F).
A40: Step 1 - Fill out the "Fixed Lease Payment Receivable Schedule" section above (starting on row 10).
A41: a - If payments escalate over time, list beginning payment amount & # of payments to be received at that amount, then move to line #2
A42: and list the next payment amount & # of payments at that amount, etc.
A43: b - If an extension is deemed Reasonably Certain to be exercised, but the amount is listed as "negotiable", then use the lease
A44: payment amount just prior to the date of extension for those unknown amounts.
A45: c - If a future payment is variable based on an index or interest rate, then calculate those future payments using the current index or rate.
A46: d - If there is an Abated or Free Rent period (skipped payment) indicated in the lease contract, | C46: Desc of Lease Incentives
A47: indicate that with a $0 payment amount (col B) & the number of payments to be skipped (col C). | C47: ='Data Input'!B238 -> Free Rent Period for pmt due 10/15/2025
A48: Make sure to put these skipped payments in the correct order chronologically. For example, if there
A49: is a Free Rent period for payment 13, then list the first 12 payments on the first line, then
A50: line #2 as $0 (col B) and 1 (col C), then line #3 as the continuing payments after the Free Rent period.
A51: e - If a Bonus payment from the lessor is included in the contract, subtract that amount from the payment closest to the proper
A52: chronological period (as described in d above). This may cause that payment amount to be negative.
A53: f - Use the blue box below to describe how payments change over time. For example - (a) Payment increases 5% every 10 yrs;
A54: (b) Appraisal to be completed every 25 years; or (c) Payment recalculated every 5 yrs based on CPI, etc.
A55: Also describe payment frequency if Less Often than Annually.
A56: Fixed + Fixed-In-Substance payment for 1st 5 yrs = $282,000; Payment for yrs 6-10 = $302,000; extension period amount to be negotiated - therefore, using most recent payment amount before extension period of $302,000. Final Payment is $0 because of the deposit paid before commencement of the lease.
A59: g - If payments are Less Often than Annually,indicate this in the Payment Schedule above by listing first payment on the first row (1 in
A60: col C), then the 2nd row should show how many years to be skipped in col C ($0 in col B), then the 3rd row will show the 2nd payment.
A61: Repeat until all payments & all years are represented in the Payment Schdl (total in col C should tie to total yrs of lease term & cell B4).
A62: h - If there are not enough lines in the table above, use the table below to input the additional payment amounts, and the totals from
A63: the additional table will automatically be added to the Payment Schedule above.
A64: i - Verify that the total # of payments in cell B4 is the same as the sum of col C (cell C16).
A66: Additional Lease Payment Receivable Lines (if needed) | B66: Amount | C66: # of Payments
A67: Payment Amount #5 & # of Payments at this amount | B67: 0 | C67: 1
A68: Payment Amount #6 & # of Payments at this amount | B68: 0 | C68: 0
A69: Payment Amount #7 & # of Payments at this amount | B69: 0 | C69: 0
A70: Payment Amount #8 & # of Payments at this amount | B70: 0 | C70: 0
A71: Payment Amount #9 & # of Payments at this amount | B71: 0 | C71: 0
A72: Payment Amount #10 & # of Payments at this amount | B72: 0 | C72: 0
A73: Payment Amount #11 & # of Payments at this amount | B73: 0 | C73: 0
A74: Payment Amount #12 & # of Payments at this amount | B74: 0 | C74: 0
A75: Payment Amount #13 & # of Payments at this amount | B75: 0 | C75: 0
A76: Payment Amount #14 & # of Payments at this amount | B76: 0 | C76: 0
A77: Payment Amount #15 & # of Payments at this amount | B77: 0 | C77: 0
A78: Payment Amount #16 & # of Payments at this amount | B78: 0 | C78: 0
A79: Payment Amount #17 & # of Payments at this amount | B79: 0 | C79: 0
A80: Payment Amount #18 & # of Payments at this amount | B80: 0 | C80: 0
A81: Payment Amount #19 & # of Payments at this amount | B81: 0 | C81: 0
A82: Payment Amount #20 & # of Payments at this amount | B82: 0 | C82: 0
A83: Payment Amount #21 & # of Payments at this amount | B83: 0 | C83: 0
A84: Payment Amount #22 & # of Payments at this amount | B84: 0 | C84: 0
A85: Payment Amount #23 & # of Payments at this amount | B85: 0 | C85: 0
A86: Payment Amount #24 & # of Payments at this amount | B86: 0 | C86: 0
A87: Payment Amount #25 & # of Payments at this amount | B87: 0 | C87: 0
A88: Total Add'l Lease Payment Amts (will automatically be added to the Schedule above) | B88: =(B67*C67)+(B68*C68)+(B69*C69)+(B70*C70)+(B71*C71)+(B72*C72)+(B73*C73)+(B74*C74)+(B75*C75)+(B76*C76)+(B77*C77)+(B78*C78)+(B79*C79)+(B80*C80)+(B81*C81)+(B82*C82)+(B83*C83)+(B84*C84)+(B85*C85)+(B86*C86)+(B87*C87) -> 0 | C88: =SUM(C67:C87) -> 1
A90: Step 2 - Fill out the "Other Payment Considerations" section (starting on row 18) ONLY if instructed to do so on the Data Input tab
A91: (responses from Data Input tab are shown in col D).
A92: a - The Residual Value Guarantee line should only have an amount listed in Col B if it is Fixed In-Substance and not reliant on a future
A93: consideration (i.e. FMV of leased asset).
A94: b - The Allowance for Uncollectible Leases line should only have an amount listed in col C if economic circumstances, lessee
A95: creditworthiness, and historic information indicate a need for an allowance to be calculated. This amount is listed in col C because
A96: it will not be calculated as part of the Present Value of the Lease Receivable, but will instead reduce the Present Value after it is
A97: calculated as a contra-receivable.
A99: Steps 3 - 8 are OPTIONAL (calculation of Present Value and Amortization Tables)
A100: Step 3 - Click the Macro button below to Generate the first 2 columns of the Present Value (PV) Table.
A103: Step 4 - Using the Payment Receivable Schedule filled out in Steps 1 & 2, fill in the Payment Amounts into col F of the PV Table.
A104: a - If there are 12 payments for the 1st payment amount, and 6 payments for the 2nd payment amount, list the 1st amount in the
A105: first 12 rows of the Table, then the 2nd amount for the next 6 rows, and do the same for the remaining payment amounts listed
A106: in the Payment Schedule until all the payments are filled in on the Table.
A107: b - Make sure not to skip any Free Rent periods. If the Payment Schedule indicates the 13th payment is $0, then row 13 of the
A108: Table should be $0, same as the Payment Schedule.
A109: c - If there are any amounts listed for "Other Payment Considerations", add it to the final payment. For example, if the final
A110: payment is $20,000, and there is a Residual Value Guarantee listed for $5,000, then the final payment in the Table should be $25,000.
A111: d - Check to make sure that the sum of all the payments entered into col F of the Table is the same as the Total Undiscounted Cash
A112: Flows in cell B23.
A114: Step 5 - Click the Macro button below to Calculate Net Present Value and Generate the PV and Amortization Tables.
A118: Step 6 - Check data for accuracy:
A119: a - Check the date of the final payment in the Amortization Table and compare to Lease End Date in cell B8. Make sure the final
A120: payment date is reasonable in comparison to the Lease End Date (within same month if payments are Monthly, within the final
A121: quarter if Quarterly, etc).
A122: b - If payments change (there are amounts in Payment Amount #2 + rows), then check the dates the amounts change in the
A123: Amort Table (columns K & M) to make sure the payments change on the correct dates as per the Lease Contract.
A124: c - If 6a and 6b are BOTH correct, skip to Step 8 (Do NOT click the Start Over Macro Button).
A125: d - If 6a or 6b does not appear to be correct:
A126: i - Double-check the Instructions above (Steps 1 - 6), including the check for # of payments in 1i & check for Table payments in 4d.
A127: ii - Double-check cells B2-B8 by reviewing the Lease Contract. These cells automatically filled based on answers in the Data Input
A128: tab. Make any necessary corrections in the Data Input tab (NOT in cells B2-B8) - the corresponding question #s are referenced above.
A129: iii - Double-Check the Payment Schedule and Other Payment Considerations sections. Compare back to the Lease contract to
A130: verify, and correct as necessary.
A131: e - Once corrections have been made, click the Macro button below to Delete the PV & Amortization Tables.
A135: Step 7 - Repeat Steps 3-6 as needed until all checks (1i, 4d, 6a, 6b, and 6di-6diii) are correct.
A137: Step 8 - See Net Present Value calculated in cell B25 for the Lease Receivable and the Deferred Inflow of Resources in cell B28.
A138: Also, see Present Value Table in columns E-G,
A139: and Amortization Table in columns J-P.

Sheet Lease 1 - PV Calc
A1: Present Value Calculations tab - Lease 1 (column C) | B1: Contract # | C1: ='Data Input'!C58 -> 0
A2: Periodic Interest Rate (Section VII, #27-28 from Data Input tab) | B2: ='Data Input'!C266 -> 0
A3: Cash Flows at Beginning or End (Section V, #19) | B3: ='Data Input'!C179 -> 0 | C3: Important:
A4: Number of payments (Section V, #18) | B4: ='Data Input'!C172 -> 0 | C4: Do not insert/delete/move
A5: Frequency of payments (Section V, #17) | B5: ='Data Input'!C166 -> 0 | C5: cells B2:B8
A6: Date of first payment (Section V, #20) | B6: ='Data Input'!C185 -> 00:00:00 | C6: (macros depend on them)
A7: Lease Start Date (Section V, #12) | B7: ='Data Input'!C150 -> 00:00:00
A8: Lease End Date including Extensions (Section V, #15) | B8: ='Data Input'!C161 -> 00:00:00
A10: Fixed Lease Payment Receivable Schedule (Section VI, #21 & see instructions below): | B10: Amount | C10: # of Payments
A11: Payment Amount #1 & # of Payments at this amount | B11: 0 | C11: 0
A12: Payment Amount #2 & # of Payments at this amount | B12: 0 | C12: 0
A13: Payment Amount #3 & # of Payments at this amount | B13: 0 | C13: 0
A14: Payment Amount #4 & # of Payments at this amount | B14: 0 | C14: 0
A15: Totals from add'l table below (if needed) | B15: =B88 -> 0 | C15: =C88 -> 0
A16: Total Lease Payments (sum of all payment amounts * # of payments) | B16: =(B11*C11)+(B12*C12)+(B13*C13)+(B14*C14)+(B15) -> 0 | C16: =SUM(C11:C15) -> 0
D17: Response per
A18: Other Payment Considerations: | B18: Residual Value Guar | C18: Allow for Uncollectible Amt | D18: Data Input tab
A19: Residual Value Guarantee if Fixed-in-Substance (Section VI, #24a & b) | B19: 0 | D19: ='Data Input'!C224 -> 0
A20: Allowance for Uncollectible Leases (Section VI, #26)
A21: For example, could be calculated as a percentage of the total lease pmt rcvbl above | C21: 0 | D21: ='Data Input'!C242 -> 0
A22: Total Other Payment Considerations | B22: =SUM(B19:B21) -> 0
A23: Total Undiscounted Cash Flows (Total Payments + Other Considerations) | B23: =B16+B22 -> 0
C24: Important:
A25: Net Present Value (calculated after Macros below run) | B25: =SUM(G:G) -> 0 | C25: Do not insert/delete/move
C26: NPV must be cell B25
A27: Additions/Subtractions for Deferred Inflow of Resources (Section IV, #9-11) | B27: ='Data Input'!C124-'Data Input'!C127 -> 0 | C27: (macros depend on it)
A28: Deferred Inflow of Resources (calculated after Macros below run) | B28: =B25+B27 -> 0
A30: The Agency is not required to calculate the Present Value and/or enable Macros,
A31: but Steps 1 & 2 of the instructions below are REQUIRED to be completed.
A32: After completing Steps 1 & 2, if desired to calculate the Present Value, complete Steps 3 - 8:
A34: Note 1: First make sure your Excel settings are correct - | B34: See How to Enable Macros tab
A35: Note 2: Please do not Insert, Delete, or Move any cells, columns or rows as this could cause the Macros to fail.
A36: Note 3: The Blue Cells in columns B & C are for manual input, and the Present Value Table will need to be adjusted in column F.
A37: The Orange cells in columns B & C will automatically fill. Also, the Present Value and Amortization Tables will be generated with the
A38: Macro buttons. Please do not make changes to the orange cells or anywhere within the Tables (except column F).
A40: Step 1 - Fill out the "Fixed Lease Payment Receivable Schedule" section above (starting on row 10).
A41: a - If payments escalate over time, list beginning payment amount & # of payments to be received at that amount, then move to line #2
A42: and list the next payment amount & # of payments at that amount, etc.
A43: b - If an extension is deemed Reasonably Certain to be exercised, but the amount is listed as "negotiable", then use the lease
A44: payment amount just prior to the date of extension for those unknown amounts.
A45: c - If a future payment is variable based on an index or interest rate, then calculate those future payments using the current index or rate.
A46: d - If there is an Abated or Free Rent period (skipped payment) indicated in the lease contract, | C46: Desc of Lease Incentives
A47: indicate that with a $0 payment amount (col B) & the number of payments to be skipped (col C). | C47: ='Data Input'!C238 -> 0
A48: Make sure to put these skipped payments in the correct order chronologically. For example, if there
A49: is a Free Rent period for payment 13, then list the first 12 payments on the first line, then
A50: line #2 as $0 (col B) and 1 (col C), then line #3 as the continuing payments after the Free Rent period.
A51: e - If a Bonus payment from the lessor is included in the contract, subtract that amount from the payment closest to the proper
A52: chronological period (as described in d above). This may cause that payment amount to be negative.
A53: f - Use the blue box below to describe how payments change over time. For example - (a) Payment increases 5% every 10 yrs;
A54: (b) Appraisal to be completed every 25 years; or (c) Payment recalculated every 5 yrs based on CPI, etc.
A55: Also describe payment frequency if Less Often than Annually.
A59: g - If payments are Less Often than Annually,indicate this in the Payment Schedule above by listing first payment on the first row (1 in
A60: col C), then the 2nd row should show how many years to be skipped in col C ($0 in col B), then the 3rd row will show the 2nd payment.
A61: Repeat until all payments & all years are represented in the Payment Schdl (total in col C should tie to total yrs of lease term & cell B4).
A62: h - If there are not enough lines in the table above, use the table below to input the additional payment amounts, and the totals from
A63: the additional table will automatically be added to the Payment Schedule above.
A64: i - Verify that the total # of payments in cell B4 is the same as the sum of col C (cell C16).
A66: Additional Lease Payment Receivable Lines (if needed) | B66: Amount | C66: # of Payments
A67: Payment Amount #5 & # of Payments at this amount | B67: 0 | C67: 0
A68: Payment Amount #6 & # of Payments at this amount | B68: 0 | C68: 0
A69: Payment Amount #7 & # of Payments at this amount | B69: 0 | C69: 0
A70: Payment Amount #8 & # of Payments at this amount | B70: 0 | C70: 0
A71: Payment Amount #9 & # of Payments at this amount | B71: 0 | C71: 0
A72: Payment Amount #10 & # of Payments at this amount | B72: 0 | C72: 0
A73: Payment Amount #11 & # of Payments at this amount | B73: 0 | C73: 0
A74: Payment Amount #12 & # of Payments at this amount | B74: 0 | C74: 0
A75: Payment Amount #13 & # of Payments at this amount | B75: 0 | C75: 0
A76: Payment Amount #14 & # of Payments at this amount | B76: 0 | C76: 0
A77: Payment Amount #15 & # of Payments at this amount | B77: 0 | C77: 0
A78: Payment Amount #16 & # of Payments at this amount | B78: 0 | C78: 0
A79: Payment Amount #17 & # of Payments at this amount | B79: 0 | C79: 0
A80: Payment Amount #18 & # of Payments at this amount | B80: 0 | C80: 0
A81: Payment Amount #19 & # of Payments at this amount | B81: 0 | C81: 0
A82: Payment Amount #20 & # of Payments at this amount | B82: 0 | C82: 0
A83: Payment Amount #21 & # of Payments at this amount | B83: 0 | C83: 0
A84: Payment Amount #22 & # of Payments at this amount | B84: 0 | C84: 0
A85: Payment Amount #23 & # of Payments at this amount | B85: 0 | C85: 0
A86: Payment Amount #24 & # of Payments at this amount | B86: 0 | C86: 0
A87: Payment Amount #25 & # of Payments at this amount | B87: 0 | C87: 0
A88: Total Add'l Lease Payment Amts (will automatically be added to the Schedule above) | B88: =(B67*C67)+(B68*C68)+(B69*C69)+(B70*C70)+(B71*C71)+(B72*C72)+(B73*C73)+(B74*C74)+(B75*C75)+(B76*C76)+(B77*C77)+(B78*C78)+(B79*C79)+(B80*C80)+(B81*C81)+(B82*C82)+(B83*C83)+(B84*C84)+(B85*C85)+(B86*C86)+(B87*C87) -> 0 | C88: =SUM(C67:C87) -> 0
A90: Step 2 - Fill out the "Other Payment Considerations" section (starting on row 18) ONLY if instructed to do so on the Data Input tab
A91: (responses from Data Input tab are shown in col D).
A92: a - The Residual Value Guarantee line should only have an amount listed in Col B if it is Fixed In-Substance and not reliant on a future
A93: consideration (i.e. FMV of leased asset).
A94: b - The Allowance for Uncollectible Leases line should only have an amount listed in col C if economic circumstances, lessee
A95: creditworthiness, and historic information indicate a need for an allowance to be calculated. This amount is listed in col C because
A96: it will not be calculated as part of the Present Value of the Lease Receivable, but will instead reduce the Present Value after it is
A97: calculated as a contra-receivable.
A99: Steps 3 - 8 are OPTIONAL (calculation of Present Value and Amortization Tables)
A100: Step 3 - Click the Macro button below to Generate the first 2 columns of the Present Value (PV) Table.
A103: Step 4 - Using the Payment Receivable Schedule filled out in Steps 1 & 2, fill in the Payment Amounts into col F of the PV Table.
A104: a - If there are 12 payments for the 1st payment amount, and 6 payments for the 2nd payment amount, list the 1st amount in the
A105: first 12 rows of the Table, then the 2nd amount for the next 6 rows, and do the same for the remaining payment amounts listed
A106: in the Payment Schedule until all the payments are filled in on the Table.
A107: b - Make sure not to skip any Free Rent periods. If the Payment Schedule indicates the 13th payment is $0, then row 13 of the
A108: Table should be $0, same as the Payment Schedule.
A109: c - If there are any amounts listed for "Other Payment Considerations", add it to the final payment. For example, if the final
A110: payment is $20,000, and there is a Residual Value Guarantee listed for $5,000, then the final payment in the Table should be $25,000.
A111: d - Check to make sure that the sum of all the payments entered into col F of the Table is the same as the Total Undiscounted Cash
A112: Flows in cell B23.
A114: Step 5 - Click the Macro button below to Calculate Net Present Value and Generate the PV and Amortization Tables.
A118: Step 6 - Check data for accuracy:
A119: a - Check the date of the final payment in the Amortization Table and compare to Lease End Date in cell B8. Make sure the final
A120: payment date is reasonable in comparison to the Lease End Date (within same month if payments are Monthly, within the final
A121: quarter if Quarterly, etc).
A122: b - If payments change (there are amounts in Payment Amount #2 + rows), then check the dates the amounts change in the
A123: Amort Table (columns K & M) to make sure the payments change on the correct dates as per the Lease Contract.
A124: c - If 6a and 6b are BOTH correct, skip to Step 8 (Do NOT click the Start Over Macro Button).
A125: d - If 6a or 6b does not appear to be correct:
A126: i - Double-check the Instructions above (Steps 1 - 6), including the check for # of payments in 1i & check for Table payments in 4d.
A127: ii - Double-check cells B2-B8 by reviewing the Lease Contract. These cells automatically filled based on answers in the Data Input
A128: tab. Make any necessary corrections in the Data Input tab (NOT in cells B2-B8) - the corresponding question #s are referenced above.
A129: iii - Double-Check the Payment Schedule and Other Payment Considerations sections. Compare back to the Lease contract to
A130: verify, and correct as necessary.
A131: e - Once corrections have been made, click the Macro button below to Delete the PV & Amortization Tables.
A135: Step 7 - Repeat Steps 3-6 as needed until all checks (1i, 4d, 6a, 6b, and 6di-6diii) are correct.
A137: Step 8 - See Net Present Value calculated in cell B25 for the Lease Receivable and the Deferred Inflow of Resources in cell B28.
A138: Also, see Present Value Table in columns E-G,
A139: and Amortization Table in columns J-P.

Sheet Lease 2 - PV Calc
A1: Present Value Calculations tab - Lease 2 (column D) | B1: Contract # | C1: ='Data Input'!D58 -> 0
A2: Periodic Interest Rate (Section VII, #27-28 from Data Input tab) | B2: ='Data Input'!D266 -> 0
A3: Cash Flows at Beginning or End (Section V, #19) | B3: ='Data Input'!D179 -> 0 | C3: Important:
A4: Number of payments (Section V, #18) | B4: ='Data Input'!D172 -> 0 | C4: Do not insert/delete/move
A5: Frequency of payments (Section V, #17) | B5: ='Data Input'!D166 -> 0 | C5: cells B2:B8
A6: Date of first payment (Section V, #20) | B6: ='Data Input'!D185 -> 00:00:00 | C6: (macros depend on them)
A7: Lease Start Date (Section V, #12) | B7: ='Data Input'!D150 -> 00:00:00
A8: Lease End Date including Extensions (Section V, #15) | B8: ='Data Input'!D161 -> 00:00:00
A10: Fixed Lease Payment Receivable Schedule (Section VI, #21 & see instructions below): | B10: Amount | C10: # of Payments
A11: Payment Amount #1 & # of Payments at this amount | B11: 0 | C11: 0
A12: Payment Amount #2 & # of Payments at this amount | B12: 0 | C12: 0
A13: Payment Amount #3 & # of Payments at this amount | B13: 0 | C13: 0
A14: Payment Amount #4 & # of Payments at this amount | B14: 0 | C14: 0
A15: Totals from add'l table below (if needed) | B15: =B88 -> 0 | C15: =C88 -> 0
A16: Total Lease Payments (sum of all payment amounts * # of payments) | B16: =(B11*C11)+(B12*C12)+(B13*C13)+(B14*C14)+(B15) -> 0 | C16: =SUM(C11:C15) -> 0
D17: Response per
A18: Other Payment Considerations: | B18: Residual Value Guar | C18: Allow for Uncollectible Amt | D18: Data Input tab
A19: Residual Value Guarantee if Fixed-in-Substance (Section VI, #24a & b) | B19: 0 | D19: ='Data Input'!D224 -> 0
A20: Allowance for Uncollectible Leases (Section VI, #26)
A21: For example, could be calculated as a percentage of the total lease pmt rcvbl above | C21: 0 | D21: ='Data Input'!D242 -> 0
A22: Total Other Payment Considerations | B22: =SUM(B19:B21) -> 0
A23: Total Undiscounted Cash Flows (Total Payments + Other Considerations) | B23: =B16+B22 -> 0
C24: Important:
A25: Net Present Value (calculated after Macros below run) | B25: =SUM(G:G) -> 0 | C25: Do not insert/delete/move
C26: NPV must be cell B25
A27: Additions/Subtractions for Deferred Inflow of Resources (Section IV, #9-11) | B27: ='Data Input'!D124-'Data Input'!D127 -> 0 | C27: (macros depend on it)
A28: Deferred Inflow of Resources (calculated after Macros below run) | B28: =B25+B27 -> 0
A30: The Agency is not required to calculate the Present Value and/or enable Macros,
A31: but Steps 1 & 2 of the instructions below are REQUIRED to be completed.
A32: After completing Steps 1 & 2, if desired to calculate the Present Value, complete Steps 3 - 8:
A34: Note 1: First make sure your Excel settings are correct - | B34: See How to Enable Macros tab
A35: Note 2: Please do not Insert, Delete, or Move any cells, columns or rows as this could cause the Macros to fail.
A36: Note 3: The Blue Cells in columns B & C are for manual input, and the Present Value Table will need to be adjusted in column F.
A37: The Orange cells in columns B & C will automatically fill. Also, the Present Value and Amortization Tables will be generated with the
A38: Macro buttons. Please do not make changes to the orange cells or anywhere within the Tables (except column F).
A40: Step 1 - Fill out the "Fixed Lease Payment Receivable Schedule" section above (starting on row 10).
A41: a - If payments escalate over time, list beginning payment amount & # of payments to be received at that amount, then move to line #2
A42: and list the next payment amount & # of payments at that amount, etc.
A43: b - If an extension is deemed Reasonably Certain to be exercised, but the amount is listed as "negotiable", then use the lease
A44: payment amount just prior to the date of extension for those unknown amounts.
A45: c - If a future payment is variable based on an index or interest rate, then calculate those future payments using the current index or rate.
A46: d - If there is an Abated or Free Rent period (skipped payment) indicated in the lease contract, | C46: Desc of Lease Incentives
A47: indicate that with a $0 payment amount (col B) & the number of payments to be skipped (col C). | C47: ='Data Input'!D238 -> 0
A48: Make sure to put these skipped payments in the correct order chronologically. For example, if there
A49: is a Free Rent period for payment 13, then list the first 12 payments on the first line, then
A50: line #2 as $0 (col B) and 1 (col C), then line #3 as the continuing payments after the Free Rent period.
A51: e - If a Bonus payment from the lessor is included in the contract, subtract that amount from the payment closest to the proper
A52: chronological period (as described in d above). This may cause that payment amount to be negative.
A53: f - Use the blue box below to describe how payments change over time. For example - (a) Payment increases 5% every 10 yrs;
A54: (b) Appraisal to be completed every 25 years; or (c) Payment recalculated every 5 yrs based on CPI, etc.
A55: Also describe payment frequency if Less Often than Annually.
A59: g - If payments are Less Often than Annually,indicate this in the Payment Schedule above by listing first payment on the first row (1 in
A60: col C), then the 2nd row should show how many years to be skipped in col C ($0 in col B), then the 3rd row will show the 2nd payment.
A61: Repeat until all payments & all years are represented in the Payment Schdl (total in col C should tie to total yrs of lease term & cell B4).
A62: h - If there are not enough lines in the table above, use the table below to input the additional payment amounts, and the totals from
A63: the additional table will automatically be added to the Payment Schedule above.
A64: i - Verify that the total # of payments in cell B4 is the same as the sum of col C (cell C16).
A66: Additional Lease Payment Receivable Lines (if needed) | B66: Amount | C66: # of Payments
A67: Payment Amount #5 & # of Payments at this amount | B67: 0 | C67: 0
A68: Payment Amount #6 & # of Payments at this amount | B68: 0 | C68: 0
A69: Payment Amount #7 & # of Payments at this amount | B69: 0 | C69: 0
A70: Payment Amount #8 & # of Payments at this amount | B70: 0 | C70: 0
A71: Payment Amount #9 & # of Payments at this amount | B71: 0 | C71: 0
A72: Payment Amount #10 & # of Payments at this amount | B72: 0 | C72: 0
A73: Payment Amount #11 & # of Payments at this amount | B73: 0 | C73: 0
A74: Payment Amount #12 & # of Payments at this amount | B74: 0 | C74: 0
A75: Payment Amount #13 & # of Payments at this amount | B75: 0 | C75: 0
A76: Payment Amount #14 & # of Payments at this amount | B76: 0 | C76: 0
A77: Payment Amount #15 & # of Payments at this amount | B77: 0 | C77: 0
A78: Payment Amount #16 & # of Payments at this amount | B78: 0 | C78: 0
A79: Payment Amount #17 & # of Payments at this amount | B79: 0 | C79: 0
A80: Payment Amount #18 & # of Payments at this amount | B80: 0 | C80: 0
A81: Payment Amount #19 & # of Payments at this amount | B81: 0 | C81: 0
A82: Payment Amount #20 & # of Payments at this amount | B82: 0 | C82: 0
A83: Payment Amount #21 & # of Payments at this amount | B83: 0 | C83: 0
A84: Payment Amount #22 & # of Payments at this amount | B84: 0 | C84: 0
A85: Payment Amount #23 & # of Payments at this amount | B85: 0 | C85: 0
A86: Payment Amount #24 & # of Payments at this amount | B86: 0 | C86: 0
A87: Payment Amount #25 & # of Payments at this amount | B87: 0 | C87: 0
A88: Total Add'l Lease Payment Amts (will automatically be added to the Schedule above) | B88: =(B67*C67)+(B68*C68)+(B69*C69)+(B70*C70)+(B71*C71)+(B72*C72)+(B73*C73)+(B74*C74)+(B75*C75)+(B76*C76)+(B77*C77)+(B78*C78)+(B79*C79)+(B80*C80)+(B81*C81)+(B82*C82)+(B83*C83)+(B84*C84)+(B85*C85)+(B86*C86)+(B87*C87) -> 0 | C88: =SUM(C67:C87) -> 0
A90: Step 2 - Fill out the "Other Payment Considerations" section (starting on row 18) ONLY if instructed to do so on the Data Input tab
A91: (responses from Data Input tab are shown in col D).
A92: a - The Residual Value Guarantee line should only have an amount listed in Col B if it is Fixed In-Substance and not reliant on a future
A93: consideration (i.e. FMV of leased asset).
A94: b - The Allowance for Uncollectible Leases line should only have an amount listed in col C if economic circumstances, lessee
A95: creditworthiness, and historic information indicate a need for an allowance to be calculated. This amount is listed in col C because
A96: it will not be calculated as part of the Present Value of the Lease Receivable, but will instead reduce the Present Value after it is
A97: calculated as a contra-receivable.
A99: Steps 3 - 8 are OPTIONAL (calculation of Present Value and Amortization Tables)
A100: Step 3 - Click the Macro button below to Generate the first 2 columns of the Present Value (PV) Table.
A103: Step 4 - Using the Payment Receivable Schedule filled out in Steps 1 & 2, fill in the Payment Amounts into col F of the PV Table.
A104: a - If there are 12 payments for the 1st payment amount, and 6 payments for the 2nd payment amount, list the 1st amount in the
A105: first 12 rows of the Table, then the 2nd amount for the next 6 rows, and do the same for the remaining payment amounts listed
A106: in the Payment Schedule until all the payments are filled in on the Table.
A107: b - Make sure not to skip any Free Rent periods. If the Payment Schedule indicates the 13th payment is $0, then row 13 of the
A108: Table should be $0, same as the Payment Schedule.
A109: c - If there are any amounts listed for "Other Payment Considerations", add it to the final payment. For example, if the final
A110: payment is $20,000, and there is a Residual Value Guarantee listed for $5,000, then the final payment in the Table should be $25,000.
A111: d - Check to make sure that the sum of all the payments entered into col F of the Table is the same as the Total Undiscounted Cash
A112: Flows in cell B23.
A114: Step 5 - Click the Macro button below to Calculate Net Present Value and Generate the PV and Amortization Tables.
A118: Step 6 - Check data for accuracy:
A119: a - Check the date of the final payment in the Amortization Table and compare to Lease End Date in cell B8. Make sure the final
A120: payment date is reasonable in comparison to the Lease End Date (within same month if payments are Monthly, within the final
A121: quarter if Quarterly, etc).
A122: b - If payments change (there are amounts in Payment Amount #2 + rows), then check the dates the amounts change in the
A123: Amort Table (columns K & M) to make sure the payments change on the correct dates as per the Lease Contract.
A124: c - If 6a and 6b are BOTH correct, skip to Step 8 (Do NOT click the Start Over Macro Button).
A125: d - If 6a or 6b does not appear to be correct:
A126: i - Double-check the Instructions above (Steps 1 - 6), including the check for # of payments in 1i & check for Table payments in 4d.
A127: ii - Double-check cells B2-B8 by reviewing the Lease Contract. These cells automatically filled based on answers in the Data Input
A128: tab. Make any necessary corrections in the Data Input tab (NOT in cells B2-B8) - the corresponding question #s are referenced above.
A129: iii - Double-Check the Payment Schedule and Other Payment Considerations sections. Compare back to the Lease contract to
A130: verify, and correct as necessary.
A131: e - Once corrections have been made, click the Macro button below to Delete the PV & Amortization Tables.
A135: Step 7 - Repeat Steps 3-6 as needed until all checks (1i, 4d, 6a, 6b, and 6di-6diii) are correct.
A137: Step 8 - See Net Present Value calculated in cell B25 for the Lease Receivable and the Deferred Inflow of Resources in cell B28.
A138: Also, see Present Value Table in columns E-G,
A139: and Amortization Table in columns J-P.

Sheet Lease 3 - PV Calc
A1: Present Value Calculations tab - Lease 3 (column E) | B1: Contract # | C1: ='Data Input'!E58 -> 0
A2: Periodic Interest Rate (Section VII, #27-28 from Data Input tab) | B2: ='Data Input'!E266 -> 0
A3: Cash Flows at Beginning or End (Section V, #19) | B3: ='Data Input'!E179 -> 0 | C3: Important:
A4: Number of payments (Section V, #18) | B4: ='Data Input'!E172 -> 0 | C4: Do not insert/delete/move
A5: Frequency of payments (Section V, #17) | B5: ='Data Input'!E166 -> 0 | C5: cells B2:B8
A6: Date of first payment (Section V, #20) | B6: ='Data Input'!E185 -> 00:00:00 | C6: (macros depend on them)
A7: Lease Start Date (Section V, #12) | B7: ='Data Input'!E150 -> 00:00:00
A8: Lease End Date including Extensions (Section V, #15) | B8: ='Data Input'!E161 -> 00:00:00
A10: Fixed Lease Payment Receivable Schedule (Section VI, #21 & see instructions below): | B10: Amount | C10: # of Payments
A11: Payment Amount #1 & # of Payments at this amount | B11: 0 | C11: 0
A12: Payment Amount #2 & # of Payments at this amount | B12: 0 | C12: 0
A13: Payment Amount #3 & # of Payments at this amount | B13: 0 | C13: 0
A14: Payment Amount #4 & # of Payments at this amount | B14: 0 | C14: 0
A15: Totals from add'l table below (if needed) | B15: =B88 -> 0 | C15: =C88 -> 0
A16: Total Lease Payments (sum of all payment amounts * # of payments) | B16: =(B11*C11)+(B12*C12)+(B13*C13)+(B14*C14)+(B15) -> 0 | C16: =SUM(C11:C15) -> 0
D17: Response per
A18: Other Payment Considerations: | B18: Residual Value Guar | C18: Allow for Uncollectible Amt | D18: Data Input tab
A19: Residual Value Guarantee if Fixed-in-Substance (Section VI, #24a & b) | B19: 0 | D19: ='Data Input'!E224 -> 0
A20: Allowance for Uncollectible Leases (Section VI, #26)
A21: For example, could be calculated as a percentage of the total lease pmt rcvbl above | C21: 0 | D21: ='Data Input'!E242 -> 0
A22: Total Other Payment Considerations | B22: =SUM(B19:B21) -> 0
A23: Total Undiscounted Cash Flows (Total Payments + Other Considerations) | B23: =B16+B22 -> 0
C24: Important:
A25: Net Present Value (calculated after Macros below run) | B25: =SUM(G:G) -> 0 | C25: Do not insert/delete/move
C26: NPV must be cell B25
A27: Additions/Subtractions for Deferred Inflow of Resources (Section IV, #9-11) | B27: ='Data Input'!E124-'Data Input'!E127 -> 0 | C27: (macros depend on it)
A28: Deferred Inflow of Resources (calculated after Macros below run) | B28: =B25+B27 -> 0
A30: The Agency is not required to calculate the Present Value and/or enable Macros,
A31: but Steps 1 & 2 of the instructions below are REQUIRED to be completed.
A32: After completing Steps 1 & 2, if desired to calculate the Present Value, complete Steps 3 - 8:
A34: Note 1: First make sure your Excel settings are correct - | B34: See How to Enable Macros tab
A35: Note 2: Please do not Insert, Delete, or Move any cells, columns or rows as this could cause the Macros to fail.
A36: Note 3: The Blue Cells in columns B & C are for manual input, and the Present Value Table will need to be adjusted in column F.
A37: The Orange cells in columns B & C will automatically fill. Also, the Present Value and Amortization Tables will be generated with the
A38: Macro buttons. Please do not make changes to the orange cells or anywhere within the Tables (except column F).
A40: Step 1 - Fill out the "Fixed Lease Payment Receivable Schedule" section above (starting on row 10).
A41: a - If payments escalate over time, list beginning payment amount & # of payments to be received at that amount, then move to line #2
A42: and list the next payment amount & # of payments at that amount, etc.
A43: b - If an extension is deemed Reasonably Certain to be exercised, but the amount is listed as "negotiable", then use the lease
A44: payment amount just prior to the date of extension for those unknown amounts.
A45: c - If a future payment is variable based on an index or interest rate, then calculate those future payments using the current index or rate.
A46: d - If there is an Abated or Free Rent period (skipped payment) indicated in the lease contract, | C46: Desc of Lease Incentives
A47: indicate that with a $0 payment amount (col B) & the number of payments to be skipped (col C). | C47: ='Data Input'!E238 -> 0
A48: Make sure to put these skipped payments in the correct order chronologically. For example, if there
A49: is a Free Rent period for payment 13, then list the first 12 payments on the first line, then
A50: line #2 as $0 (col B) and 1 (col C), then line #3 as the continuing payments after the Free Rent period.
A51: e - If a Bonus payment from the lessor is included in the contract, subtract that amount from the payment closest to the proper
A52: chronological period (as described in d above). This may cause that payment amount to be negative.
A53: f - Use the blue box below to describe how payments change over time. For example - (a) Payment increases 5% every 10 yrs;
A54: (b) Appraisal to be completed every 25 years; or (c) Payment recalculated every 5 yrs based on CPI, etc.
A55: Also describe payment frequency if Less Often than Annually.
A59: g - If payments are Less Often than Annually,indicate this in the Payment Schedule above by listing first payment on the first row (1 in
A60: col C), then the 2nd row should show how many years to be skipped in col C ($0 in col B), then the 3rd row will show the 2nd payment.
A61: Repeat until all payments & all years are represented in the Payment Schdl (total in col C should tie to total yrs of lease term & cell B4).
A62: h - If there are not enough lines in the table above, use the table below to input the additional payment amounts, and the totals from
A63: the additional table will automatically be added to the Payment Schedule above.
A64: i - Verify that the total # of payments in cell B4 is the same as the sum of col C (cell C16).
A66: Additional Lease Payment Receivable Lines (if needed) | B66: Amount | C66: # of Payments
A67: Payment Amount #5 & # of Payments at this amount | B67: 0 | C67: 0
A68: Payment Amount #6 & # of Payments at this amount | B68: 0 | C68: 0
A69: Payment Amount #7 & # of Payments at this amount | B69: 0 | C69: 0
A70: Payment Amount #8 & # of Payments at this amount | B70: 0 | C70: 0
A71: Payment Amount #9 & # of Payments at this amount | B71: 0 | C71: 0
A72: Payment Amount #10 & # of Payments at this amount | B72: 0 | C72: 0
A73: Payment Amount #11 & # of Payments at this amount | B73: 0 | C73: 0
A74: Payment Amount #12 & # of Payments at this amount | B74: 0 | C74: 0
A75: Payment Amount #13 & # of Payments at this amount | B75: 0 | C75: 0
A76: Payment Amount #14 & # of Payments at this amount | B76: 0 | C76: 0
A77: Payment Amount #15 & # of Payments at this amount | B77: 0 | C77: 0
A78: Payment Amount #16 & # of Payments at this amount | B78: 0 | C78: 0
A79: Payment Amount #17 & # of Payments at this amount | B79: 0 | C79: 0
A80: Payment Amount #18 & # of Payments at this amount | B80: 0 | C80: 0
A81: Payment Amount #19 & # of Payments at this amount | B81: 0 | C81: 0
A82: Payment Amount #20 & # of Payments at this amount | B82: 0 | C82: 0
A83: Payment Amount #21 & # of Payments at this amount | B83: 0 | C83: 0
A84: Payment Amount #22 & # of Payments at this amount | B84: 0 | C84: 0
A85: Payment Amount #23 & # of Payments at this amount | B85: 0 | C85: 0
A86: Payment Amount #24 & # of Payments at this amount | B86: 0 | C86: 0
A87: Payment Amount #25 & # of Payments at this amount | B87: 0 | C87: 0
A88: Total Add'l Lease Payment Amts (will automatically be added to the Schedule above) | B88: =(B67*C67)+(B68*C68)+(B69*C69)+(B70*C70)+(B71*C71)+(B72*C72)+(B73*C73)+(B74*C74)+(B75*C75)+(B76*C76)+(B77*C77)+(B78*C78)+(B79*C79)+(B80*C80)+(B81*C81)+(B82*C82)+(B83*C83)+(B84*C84)+(B85*C85)+(B86*C86)+(B87*C87) -> 0 | C88: =SUM(C67:C87) -> 0
A90: Step 2 - Fill out the "Other Payment Considerations" section (starting on row 18) ONLY if instructed to do so on the Data Input tab
A91: (responses from Data Input tab are shown in col D).
A92: a - The Residual Value Guarantee line should only have an amount listed in Col B if it is Fixed In-Substance and not reliant on a future
A93: consideration (i.e. FMV of leased asset).
A94: b - The Allowance for Uncollectible Leases line should only have an amount listed in col C if economic circumstances, lessee
A95: creditworthiness, and historic information indicate a need for an allowance to be calculated. This amount is listed in col C because
A96: it will not be calculated as part of the Present Value of the Lease Receivable, but will instead reduce the Present Value after it is
A97: calculated as a contra-receivable.
A99: Steps 3 - 8 are OPTIONAL (calculation of Present Value and Amortization Tables)
A100: Step 3 - Click the Macro button below to Generate the first 2 columns of the Present Value (PV) Table.
A103: Step 4 - Using the Payment Receivable Schedule filled out in Steps 1 & 2, fill in the Payment Amounts into col F of the PV Table.
A104: a - If there are 12 payments for the 1st payment amount, and 6 payments for the 2nd payment amount, list the 1st amount in the
A105: first 12 rows of the Table, then the 2nd amount for the next 6 rows, and do the same for the remaining payment amounts listed
A106: in the Payment Schedule until all the payments are filled in on the Table.
A107: b - Make sure not to skip any Free Rent periods. If the Payment Schedule indicates the 13th payment is $0, then row 13 of the
A108: Table should be $0, same as the Payment Schedule.
A109: c - If there are any amounts listed for "Other Payment Considerations", add it to the final payment. For example, if the final
A110: payment is $20,000, and there is a Residual Value Guarantee listed for $5,000, then the final payment in the Table should be $25,000.
A111: d - Check to make sure that the sum of all the payments entered into col F of the Table is the same as the Total Undiscounted Cash
A112: Flows in cell B23.
A114: Step 5 - Click the Macro button below to Calculate Net Present Value and Generate the PV and Amortization Tables.
A118: Step 6 - Check data for accuracy:
A119: a - Check the date of the final payment in the Amortization Table and compare to Lease End Date in cell B8. Make sure the final
A120: payment date is reasonable in comparison to the Lease End Date (within same month if payments are Monthly, within the final
A121: quarter if Quarterly, etc).
A122: b - If payments change (there are amounts in Payment Amount #2 + rows), then check the dates the amounts change in the
A123: Amort Table (columns K & M) to make sure the payments change on the correct dates as per the Lease Contract.
A124: c - If 6a and 6b are BOTH correct, skip to Step 8 (Do NOT click the Start Over Macro Button).
A125: d - If 6a or 6b does not appear to be correct:
A126: i - Double-check the Instructions above (Steps 1 - 6), including the check for # of payments in 1i & check for Table payments in 4d.
A127: ii - Double-check cells B2-B8 by reviewing the Lease Contract. These cells automatically filled based on answers in the Data Input
A128: tab. Make any necessary corrections in the Data Input tab (NOT in cells B2-B8) - the corresponding question #s are referenced above.
A129: iii - Double-Check the Payment Schedule and Other Payment Considerations sections. Compare back to the Lease contract to
A130: verify, and correct as necessary.
A131: e - Once corrections have been made, click the Macro button below to Delete the PV & Amortization Tables.
A135: Step 7 - Repeat Steps 3-6 as needed until all checks (1i, 4d, 6a, 6b, and 6di-6diii) are correct.
A137: Step 8 - See Net Present Value calculated in cell B25 for the Lease Receivable and the Deferred Inflow of Resources in cell B28.
A138: Also, see Present Value Table in columns E-G,
A139: and Amortization Table in columns J-P.

Sheet Lease 4 - PV Calc
A1: Present Value Calculations tab - Lease 4 (column F) | B1: Contract # | C1: ='Data Input'!F58 -> 0
A2: Periodic Interest Rate (Section VII, #27-28 from Data Input tab) | B2: ='Data Input'!F266 -> 0
A3: Cash Flows at Beginning or End (Section V, #19) | B3: ='Data Input'!F179 -> 0 | C3: Important:
A4: Number of payments (Section V, #18) | B4: ='Data Input'!F172 -> 0 | C4: Do not insert/delete/move
A5: Frequency of payments (Section V, #17) | B5: ='Data Input'!F166 -> 0 | C5: cells B2:B8
A6: Date of first payment (Section V, #20) | B6: ='Data Input'!F185 -> 00:00:00 | C6: (macros depend on them)
A7: Lease Start Date (Section V, #12) | B7: ='Data Input'!F150 -> 00:00:00
A8: Lease End Date including Extensions (Section V, #15) | B8: ='Data Input'!F161 -> 00:00:00
A10: Fixed Lease Payment Receivable Schedule (Section VI, #21 & see instructions below): | B10: Amount | C10: # of Payments
A11: Payment Amount #1 & # of Payments at this amount | B11: 0 | C11: 0
A12: Payment Amount #2 & # of Payments at this amount | B12: 0 | C12: 0
A13: Payment Amount #3 & # of Payments at this amount | B13: 0 | C13: 0
A14: Payment Amount #4 & # of Payments at this amount | B14: 0 | C14: 0
A15: Totals from add'l table below (if needed) | B15: =B88 -> 0 | C15: =C88 -> 0
A16: Total Lease Payments (sum of all payment amounts * # of payments) | B16: =(B11*C11)+(B12*C12)+(B13*C13)+(B14*C14)+(B15) -> 0 | C16: =SUM(C11:C15) -> 0
D17: Response per
A18: Other Payment Considerations: | B18: Residual Value Guar | C18: Allow for Uncollectible Amt | D18: Data Input tab
A19: Residual Value Guarantee if Fixed-in-Substance (Section VI, #24a & b) | B19: 0 | D19: ='Data Input'!F224 -> 0
A20: Allowance for Uncollectible Leases (Section VI, #26)
A21: For example, could be calculated as a percentage of the total lease pmt rcvbl above | C21: 0 | D21: ='Data Input'!F242 -> 0
A22: Total Other Payment Considerations | B22: =SUM(B19:B21) -> 0
A23: Total Undiscounted Cash Flows (Total Payments + Other Considerations) | B23: =B16+B22 -> 0
C24: Important:
A25: Net Present Value (calculated after Macros below run) | B25: =SUM(G:G) -> 0 | C25: Do not insert/delete/move
C26: NPV must be cell B25
A27: Additions/Subtractions for Deferred Inflow of Resources (Section IV, #9-11) | B27: ='Data Input'!F124-'Data Input'!F127 -> 0 | C27: (macros depend on it)
A28: Deferred Inflow of Resources (calculated after Macros below run) | B28: =B25+B27 -> 0
A30: The Agency is not required to calculate the Present Value and/or enable Macros,
A31: but Steps 1 & 2 of the instructions below are REQUIRED to be completed.
A32: After completing Steps 1 & 2, if desired to calculate the Present Value, complete Steps 3 - 8:
A34: Note 1: First make sure your Excel settings are correct - | B34: See How to Enable Macros tab
A35: Note 2: Please do not Insert, Delete, or Move any cells, columns or rows as this could cause the Macros to fail.
A36: Note 3: The Blue Cells in columns B & C are for manual input, and the Present Value Table will need to be adjusted in column F.
A37: The Orange cells in columns B & C will automatically fill. Also, the Present Value and Amortization Tables will be generated with the
A38: Macro buttons. Please do not make changes to the orange cells or anywhere within the Tables (except column F).
A40: Step 1 - Fill out the "Fixed Lease Payment Receivable Schedule" section above (starting on row 10).
A41: a - If payments escalate over time, list beginning payment amount & # of payments to be received at that amount, then move to line #2
A42: and list the next payment amount & # of payments at that amount, etc.
A43: b - If an extension is deemed Reasonably Certain to be exercised, but the amount is listed as "negotiable", then use the lease
A44: payment amount just prior to the date of extension for those unknown amounts.
A45: c - If a future payment is variable based on an index or interest rate, then calculate those future payments using the current index or rate.
A46: d - If there is an Abated or Free Rent period (skipped payment) indicated in the lease contract, | C46: Desc of Lease Incentives
A47: indicate that with a $0 payment amount (col B) & the number of payments to be skipped (col C). | C47: ='Data Input'!F238 -> 0
A48: Make sure to put these skipped payments in the correct order chronologically. For example, if there
A49: is a Free Rent period for payment 13, then list the first 12 payments on the first line, then
A50: line #2 as $0 (col B) and 1 (col C), then line #3 as the continuing payments after the Free Rent period.
A51: e - If a Bonus payment from the lessor is included in the contract, subtract that amount from the payment closest to the proper
A52: chronological period (as described in d above). This may cause that payment amount to be negative.
A53: f - Use the blue box below to describe how payments change over time. For example - (a) Payment increases 5% every 10 yrs;
A54: (b) Appraisal to be completed every 25 years; or (c) Payment recalculated every 5 yrs based on CPI, etc.
A55: Also describe payment frequency if Less Often than Annually.
A59: g - If payments are Less Often than Annually,indicate this in the Payment Schedule above by listing first payment on the first row (1 in
A60: col C), then the 2nd row should show how many years to be skipped in col C ($0 in col B), then the 3rd row will show the 2nd payment.
A61: Repeat until all payments & all years are represented in the Payment Schdl (total in col C should tie to total yrs of lease term & cell B4).
A62: h - If there are not enough lines in the table above, use the table below to input the additional payment amounts, and the totals from
A63: the additional table will automatically be added to the Payment Schedule above.
A64: i - Verify that the total # of payments in cell B4 is the same as the sum of col C (cell C16).
A66: Additional Lease Payment Receivable Lines (if needed) | B66: Amount | C66: # of Payments
A67: Payment Amount #5 & # of Payments at this amount | B67: 0 | C67: 0
A68: Payment Amount #6 & # of Payments at this amount | B68: 0 | C68: 0
A69: Payment Amount #7 & # of Payments at this amount | B69: 0 | C69: 0
A70: Payment Amount #8 & # of Payments at this amount | B70: 0 | C70: 0
A71: Payment Amount #9 & # of Payments at this amount | B71: 0 | C71: 0
A72: Payment Amount #10 & # of Payments at this amount | B72: 0 | C72: 0
A73: Payment Amount #11 & # of Payments at this amount | B73: 0 | C73: 0
A74: Payment Amount #12 & # of Payments at this amount | B74: 0 | C74: 0
A75: Payment Amount #13 & # of Payments at this amount | B75: 0 | C75: 0
A76: Payment Amount #14 & # of Payments at this amount | B76: 0 | C76: 0
A77: Payment Amount #15 & # of Payments at this amount | B77: 0 | C77: 0
A78: Payment Amount #16 & # of Payments at this amount | B78: 0 | C78: 0
A79: Payment Amount #17 & # of Payments at this amount | B79: 0 | C79: 0
A80: Payment Amount #18 & # of Payments at this amount | B80: 0 | C80: 0
A81: Payment Amount #19 & # of Payments at this amount | B81: 0 | C81: 0
A82: Payment Amount #20 & # of Payments at this amount | B82: 0 | C82: 0
A83: Payment Amount #21 & # of Payments at this amount | B83: 0 | C83: 0
A84: Payment Amount #22 & # of Payments at this amount | B84: 0 | C84: 0
A85: Payment Amount #23 & # of Payments at this amount | B85: 0 | C85: 0
A86: Payment Amount #24 & # of Payments at this amount | B86: 0 | C86: 0
A87: Payment Amount #25 & # of Payments at this amount | B87: 0 | C87: 0
A88: Total Add'l Lease Payment Amts (will automatically be added to the Schedule above) | B88: =(B67*C67)+(B68*C68)+(B69*C69)+(B70*C70)+(B71*C71)+(B72*C72)+(B73*C73)+(B74*C74)+(B75*C75)+(B76*C76)+(B77*C77)+(B78*C78)+(B79*C79)+(B80*C80)+(B81*C81)+(B82*C82)+(B83*C83)+(B84*C84)+(B85*C85)+(B86*C86)+(B87*C87) -> 0 | C88: =SUM(C67:C87) -> 0
A90: Step 2 - Fill out the "Other Payment Considerations" section (starting on row 18) ONLY if instructed to do so on the Data Input tab
A91: (responses from Data Input tab are shown in col D).
A92: a - The Residual Value Guarantee line should only have an amount listed in Col B if it is Fixed In-Substance and not reliant on a future
A93: consideration (i.e. FMV of leased asset).
A94: b - The Allowance for Uncollectible Leases line should only have an amount listed in col C if economic circumstances, lessee
A95: creditworthiness, and historic information indicate a need for an allowance to be calculated. This amount is listed in col C because
A96: it will not be calculated as part of the Present Value of the Lease Receivable, but will instead reduce the Present Value after it is
A97: calculated as a contra-receivable.
A99: Steps 3 - 8 are OPTIONAL (calculation of Present Value and Amortization Tables)
A100: Step 3 - Click the Macro button below to Generate the first 2 columns of the Present Value (PV) Table.
A103: Step 4 - Using the Payment Receivable Schedule filled out in Steps 1 & 2, fill in the Payment Amounts into col F of the PV Table.
A104: a - If there are 12 payments for the 1st payment amount, and 6 payments for the 2nd payment amount, list the 1st amount in the
A105: first 12 rows of the Table, then the 2nd amount for the next 6 rows, and do the same for the remaining payment amounts listed
A106: in the Payment Schedule until all the payments are filled in on the Table.
A107: b - Make sure not to skip any Free Rent periods. If the Payment Schedule indicates the 13th payment is $0, then row 13 of the
A108: Table should be $0, same as the Payment Schedule.
A109: c - If there are any amounts listed for "Other Payment Considerations", add it to the final payment. For example, if the final
A110: payment is $20,000, and there is a Residual Value Guarantee listed for $5,000, then the final payment in the Table should be $25,000.
A111: d - Check to make sure that the sum of all the payments entered into col F of the Table is the same as the Total Undiscounted Cash
A112: Flows in cell B23.
A114: Step 5 - Click the Macro button below to Calculate Net Present Value and Generate the PV and Amortization Tables.
A118: Step 6 - Check data for accuracy:
A119: a - Check the date of the final payment in the Amortization Table and compare to Lease End Date in cell B8. Make sure the final
A120: payment date is reasonable in comparison to the Lease End Date (within same month if payments are Monthly, within the final
A121: quarter if Quarterly, etc).
A122: b - If payments change (there are amounts in Payment Amount #2 + rows), then check the dates the amounts change in the
A123: Amort Table (columns K & M) to make sure the payments change on the correct dates as per the Lease Contract.
A124: c - If 6a and 6b are BOTH correct, skip to Step 8 (Do NOT click the Start Over Macro Button).
A125: d - If 6a or 6b does not appear to be correct:
A126: i - Double-check the Instructions above (Steps 1 - 6), including the check for # of payments in 1i & check for Table payments in 4d.
A127: ii - Double-check cells B2-B8 by reviewing the Lease Contract. These cells automatically filled based on answers in the Data Input
A128: tab. Make any necessary corrections in the Data Input tab (NOT in cells B2-B8) - the corresponding question #s are referenced above.
A129: iii - Double-Check the Payment Schedule and Other Payment Considerations sections. Compare back to the Lease contract to
A130: verify, and correct as necessary.
A131: e - Once corrections have been made, click the Macro button below to Delete the PV & Amortization Tables.
A135: Step 7 - Repeat Steps 3-6 as needed until all checks (1i, 4d, 6a, 6b, and 6di-6diii) are correct.
A137: Step 8 - See Net Present Value calculated in cell B25 for the Lease Receivable and the Deferred Inflow of Resources in cell B28.
A138: Also, see Present Value Table in columns E-G,
A139: and Amortization Table in columns J-P.

Sheet Lease 5 - PV Calc
A1: Present Value Calculations tab - Lease 5 (column G) | B1: Contract # | C1: ='Data Input'!G58 -> 0
A2: Periodic Interest Rate (Section VII, #27-28 from Data Input tab) | B2: ='Data Input'!G266 -> 0
A3: Cash Flows at Beginning or End (Section V, #19) | B3: ='Data Input'!G179 -> 0 | C3: Important:
A4: Number of payments (Section V, #18) | B4: ='Data Input'!G172 -> 0 | C4: Do not insert/delete/move
A5: Frequency of payments (Section V, #17) | B5: ='Data Input'!G166 -> 0 | C5: cells B2:B8
A6: Date of first payment (Section V, #20) | B6: ='Data Input'!G185 -> 00:00:00 | C6: (macros depend on them)
A7: Lease Start Date (Section V, #12) | B7: ='Data Input'!G150 -> 00:00:00
A8: Lease End Date including Extensions (Section V, #15) | B8: ='Data Input'!G161 -> 00:00:00
A10: Fixed Lease Payment Receivable Schedule (Section VI, #21 & see instructions below): | B10: Amount | C10: # of Payments
A11: Payment Amount #1 & # of Payments at this amount | B11: 0 | C11: 0
A12: Payment Amount #2 & # of Payments at this amount | B12: 0 | C12: 0
A13: Payment Amount #3 & # of Payments at this amount | B13: 0 | C13: 0
A14: Payment Amount #4 & # of Payments at this amount | B14: 0 | C14: 0
A15: Totals from add'l table below (if needed) | B15: =B88 -> 0 | C15: =C88 -> 0
A16: Total Lease Payments (sum of all payment amounts * # of payments) | B16: =(B11*C11)+(B12*C12)+(B13*C13)+(B14*C14)+(B15) -> 0 | C16: =SUM(C11:C15) -> 0
D17: Response per
A18: Other Payment Considerations: | B18: Residual Value Guar | C18: Allow for Uncollectible Amt | D18: Data Input tab
A19: Residual Value Guarantee if Fixed-in-Substance (Section VI, #24a & b) | B19: 0 | D19: ='Data Input'!G224 -> 0
A20: Allowance for Uncollectible Leases (Section VI, #26)
A21: For example, could be calculated as a percentage of the total lease pmt rcvbl above | C21: 0 | D21: ='Data Input'!G242 -> 0
A22: Total Other Payment Considerations | B22: =SUM(B19:B21) -> 0
A23: Total Undiscounted Cash Flows (Total Payments + Other Considerations) | B23: =B16+B22 -> 0
C24: Important:
A25: Net Present Value (calculated after Macros below run) | B25: =SUM(G:G) -> 0 | C25: Do not insert/delete/move
C26: NPV must be cell B25
A27: Additions/Subtractions for Deferred Inflow of Resources (Section IV, #9-11) | B27: ='Data Input'!G124-'Data Input'!G127 -> 0 | C27: (macros depend on it)
A28: Deferred Inflow of Resources (calculated after Macros below run) | B28: =B25+B27 -> 0
A30: The Agency is not required to calculate the Present Value and/or enable Macros,
A31: but Steps 1 & 2 of the instructions below are REQUIRED to be completed.
A32: After completing Steps 1 & 2, if desired to calculate the Present Value, complete Steps 3 - 8:
A34: Note 1: First make sure your Excel settings are correct - | B34: See How to Enable Macros tab
A35: Note 2: Please do not Insert, Delete, or Move any cells, columns or rows as this could cause the Macros to fail.
A36: Note 3: The Blue Cells in columns B & C are for manual input, and the Present Value Table will need to be adjusted in column F.
A37: The Orange cells in columns B & C will automatically fill. Also, the Present Value and Amortization Tables will be generated with the
A38: Macro buttons. Please do not make changes to the orange cells or anywhere within the Tables (except column F).
A40: Step 1 - Fill out the "Fixed Lease Payment Receivable Schedule" section above (starting on row 10).
A41: a - If payments escalate over time, list beginning payment amount & # of payments to be received at that amount, then move to line #2
A42: and list the next payment amount & # of payments at that amount, etc.
A43: b - If an extension is deemed Reasonably Certain to be exercised, but the amount is listed as "negotiable", then use the lease
A44: payment amount just prior to the date of extension for those unknown amounts.
A45: c - If a future payment is variable based on an index or interest rate, then calculate those future payments using the current index or rate.
A46: d - If there is an Abated or Free Rent period (skipped payment) indicated in the lease contract, | C46: Desc of Lease Incentives
A47: indicate that with a $0 payment amount (col B) & the number of payments to be skipped (col C). | C47: ='Data Input'!G238 -> 0
A48: Make sure to put these skipped payments in the correct order chronologically. For example, if there
A49: is a Free Rent period for payment 13, then list the first 12 payments on the first line, then
A50: line #2 as $0 (col B) and 1 (col C), then line #3 as the continuing payments after the Free Rent period.
A51: e - If a Bonus payment from the lessor is included in the contract, subtract that amount from the payment closest to the proper
A52: chronological period (as described in d above). This may cause that payment amount to be negative.
A53: f - Use the blue box below to describe how payments change over time. For example - (a) Payment increases 5% every 10 yrs;
A54: (b) Appraisal to be completed every 25 years; or (c) Payment recalculated every 5 yrs based on CPI, etc.
A55: Also describe payment frequency if Less Often than Annually.
A59: g - If payments are Less Often than Annually,indicate this in the Payment Schedule above by listing first payment on the first row (1 in
A60: col C), then the 2nd row should show how many years to be skipped in col C ($0 in col B), then the 3rd row will show the 2nd payment.
A61: Repeat until all payments & all years are represented in the Payment Schdl (total in col C should tie to total yrs of lease term & cell B4).
A62: h - If there are not enough lines in the table above, use the table below to input the additional payment amounts, and the totals from
A63: the additional table will automatically be added to the Payment Schedule above.
A64: i - Verify that the total # of payments in cell B4 is the same as the sum of col C (cell C16).
A66: Additional Lease Payment Receivable Lines (if needed) | B66: Amount | C66: # of Payments
A67: Payment Amount #5 & # of Payments at this amount | B67: 0 | C67: 0
A68: Payment Amount #6 & # of Payments at this amount | B68: 0 | C68: 0
A69: Payment Amount #7 & # of Payments at this amount | B69: 0 | C69: 0
A70: Payment Amount #8 & # of Payments at this amount | B70: 0 | C70: 0
A71: Payment Amount #9 & # of Payments at this amount | B71: 0 | C71: 0
A72: Payment Amount #10 & # of Payments at this amount | B72: 0 | C72: 0
A73: Payment Amount #11 & # of Payments at this amount | B73: 0 | C73: 0
A74: Payment Amount #12 & # of Payments at this amount | B74: 0 | C74: 0
A75: Payment Amount #13 & # of Payments at this amount | B75: 0 | C75: 0
A76: Payment Amount #14 & # of Payments at this amount | B76: 0 | C76: 0
A77: Payment Amount #15 & # of Payments at this amount | B77: 0 | C77: 0
A78: Payment Amount #16 & # of Payments at this amount | B78: 0 | C78: 0
A79: Payment Amount #17 & # of Payments at this amount | B79: 0 | C79: 0
A80: Payment Amount #18 & # of Payments at this amount | B80: 0 | C80: 0
A81: Payment Amount #19 & # of Payments at this amount | B81: 0 | C81: 0
A82: Payment Amount #20 & # of Payments at this amount | B82: 0 | C82: 0
A83: Payment Amount #21 & # of Payments at this amount | B83: 0 | C83: 0
A84: Payment Amount #22 & # of Payments at this amount | B84: 0 | C84: 0
A85: Payment Amount #23 & # of Payments at this amount | B85: 0 | C85: 0
A86: Payment Amount #24 & # of Payments at this amount | B86: 0 | C86: 0
A87: Payment Amount #25 & # of Payments at this amount | B87: 0 | C87: 0
A88: Total Add'l Lease Payment Amts (will automatically be added to the Schedule above) | B88: =(B67*C67)+(B68*C68)+(B69*C69)+(B70*C70)+(B71*C71)+(B72*C72)+(B73*C73)+(B74*C74)+(B75*C75)+(B76*C76)+(B77*C77)+(B78*C78)+(B79*C79)+(B80*C80)+(B81*C81)+(B82*C82)+(B83*C83)+(B84*C84)+(B85*C85)+(B86*C86)+(B87*C87) -> 0 | C88: =SUM(C67:C87) -> 0
A90: Step 2 - Fill out the "Other Payment Considerations" section (starting on row 18) ONLY if instructed to do so on the Data Input tab
A91: (responses from Data Input tab are shown in col D).
A92: a - The Residual Value Guarantee line should only have an amount listed in Col B if it is Fixed In-Substance and not reliant on a future
A93: consideration (i.e. FMV of leased asset).
A94: b - The Allowance for Uncollectible Leases line should only have an amount listed in col C if economic circumstances, lessee
A95: creditworthiness, and historic information indicate a need for an allowance to be calculated. This amount is listed in col C because
A96: it will not be calculated as part of the Present Value of the Lease Receivable, but will instead reduce the Present Value after it is
A97: calculated as a contra-receivable.
A99: Steps 3 - 8 are OPTIONAL (calculation of Present Value and Amortization Tables)
A100: Step 3 - Click the Macro button below to Generate the first 2 columns of the Present Value (PV) Table.
A103: Step 4 - Using the Payment Receivable Schedule filled out in Steps 1 & 2, fill in the Payment Amounts into col F of the PV Table.
A104: a - If there are 12 payments for the 1st payment amount, and 6 payments for the 2nd payment amount, list the 1st amount in the
A105: first 12 rows of the Table, then the 2nd amount for the next 6 rows, and do the same for the remaining payment amounts listed
A106: in the Payment Schedule until all the payments are filled in on the Table.
A107: b - Make sure not to skip any Free Rent periods. If the Payment Schedule indicates the 13th payment is $0, then row 13 of the
A108: Table should be $0, same as the Payment Schedule.
A109: c - If there are any amounts listed for "Other Payment Considerations", add it to the final payment. For example, if the final
A110: payment is $20,000, and there is a Residual Value Guarantee listed for $5,000, then the final payment in the Table should be $25,000.
A111: d - Check to make sure that the sum of all the payments entered into col F of the Table is the same as the Total Undiscounted Cash
A112: Flows in cell B23.
A114: Step 5 - Click the Macro button below to Calculate Net Present Value and Generate the PV and Amortization Tables.
A118: Step 6 - Check data for accuracy:
A119: a - Check the date of the final payment in the Amortization Table and compare to Lease End Date in cell B8. Make sure the final
A120: payment date is reasonable in comparison to the Lease End Date (within same month if payments are Monthly, within the final
A121: quarter if Quarterly, etc).
A122: b - If payments change (there are amounts in Payment Amount #2 + rows), then check the dates the amounts change in the
A123: Amort Table (columns K & M) to make sure the payments change on the correct dates as per the Lease Contract.
A124: c - If 6a and 6b are BOTH correct, skip to Step 8 (Do NOT click the Start Over Macro Button).
A125: d - If 6a or 6b does not appear to be correct:
A126: i - Double-check the Instructions above (Steps 1 - 6), including the check for # of payments in 1i & check for Table payments in 4d.
A127: ii - Double-check cells B2-B8 by reviewing the Lease Contract. These cells automatically filled based on answers in the Data Input
A128: tab. Make any necessary corrections in the Data Input tab (NOT in cells B2-B8) - the corresponding question #s are referenced above.
A129: iii - Double-Check the Payment Schedule and Other Payment Considerations sections. Compare back to the Lease contract to
A130: verify, and correct as necessary.
A131: e - Once corrections have been made, click the Macro button below to Delete the PV & Amortization Tables.
A135: Step 7 - Repeat Steps 3-6 as needed until all checks (1i, 4d, 6a, 6b, and 6di-6diii) are correct.
A137: Step 8 - See Net Present Value calculated in cell B25 for the Lease Receivable and the Deferred Inflow of Resources in cell B28.
A138: Also, see Present Value Table in columns E-G,
A139: and Amortization Table in columns J-P.

Sheet Lease 6 - PV Calc
A1: Present Value Calculations tab - Lease 6 (column H) | B1: Contract # | C1: ='Data Input'!H58 -> 0
A2: Periodic Interest Rate (Section VII, #27-28 from Data Input tab) | B2: ='Data Input'!H266 -> 0
A3: Cash Flows at Beginning or End (Section V, #19) | B3: ='Data Input'!H179 -> 0 | C3: Important:
A4: Number of payments (Section V, #18) | B4: ='Data Input'!H172 -> 0 | C4: Do not insert/delete/move
A5: Frequency of payments (Section V, #17) | B5: ='Data Input'!H166 -> 0 | C5: cells B2:B8
A6: Date of first payment (Section V, #20) | B6: ='Data Input'!H185 -> 00:00:00 | C6: (macros depend on them)
A7: Lease Start Date (Section V, #12) | B7: ='Data Input'!H150 -> 00:00:00
A8: Lease End Date including Extensions (Section V, #15) | B8: ='Data Input'!H161 -> 00:00:00
A10: Fixed Lease Payment Receivable Schedule (Section VI, #21 & see instructions below): | B10: Amount | C10: # of Payments
A11: Payment Amount #1 & # of Payments at this amount | B11: 0 | C11: 0
A12: Payment Amount #2 & # of Payments at this amount | B12: 0 | C12: 0
A13: Payment Amount #3 & # of Payments at this amount | B13: 0 | C13: 0
A14: Payment Amount #4 & # of Payments at this amount | B14: 0 | C14: 0
A15: Totals from add'l table below (if needed) | B15: =B88 -> 0 | C15: =C88 -> 0
A16: Total Lease Payments (sum of all payment amounts * # of payments) | B16: =(B11*C11)+(B12*C12)+(B13*C13)+(B14*C14)+(B15) -> 0 | C16: =SUM(C11:C15) -> 0
D17: Response per
A18: Other Payment Considerations: | B18: Residual Value Guar | C18: Allow for Uncollectible Amt | D18: Data Input tab
A19: Residual Value Guarantee if Fixed-in-Substance (Section VI, #24a & b) | B19: 0 | D19: ='Data Input'!H224 -> 0
A20: Allowance for Uncollectible Leases (Section VI, #26)
A21: For example, could be calculated as a percentage of the total lease pmt rcvbl above | C21: 0 | D21: ='Data Input'!H242 -> 0
A22: Total Other Payment Considerations | B22: =SUM(B19:B21) -> 0
A23: Total Undiscounted Cash Flows (Total Payments + Other Considerations) | B23: =B16+B22 -> 0
C24: Important:
A25: Net Present Value (calculated after Macros below run) | B25: =SUM(G:G) -> 0 | C25: Do not insert/delete/move
C26: NPV must be cell B25
A27: Additions/Subtractions for Deferred Inflow of Resources (Section IV, #9-11) | B27: ='Data Input'!H124-'Data Input'!H127 -> 0 | C27: (macros depend on it)
A28: Deferred Inflow of Resources (calculated after Macros below run) | B28: =B25+B27 -> 0
A30: The Agency is not required to calculate the Present Value and/or enable Macros,
A31: but Steps 1 & 2 of the instructions below are REQUIRED to be completed.
A32: After completing Steps 1 & 2, if desired to calculate the Present Value, complete Steps 3 - 8:
A34: Note 1: First make sure your Excel settings are correct - | B34: See How to Enable Macros tab
A35: Note 2: Please do not Insert, Delete, or Move any cells, columns or rows as this could cause the Macros to fail.
A36: Note 3: The Blue Cells in columns B & C are for manual input, and the Present Value Table will need to be adjusted in column F.
A37: The Orange cells in columns B & C will automatically fill. Also, the Present Value and Amortization Tables will be generated with the
A38: Macro buttons. Please do not make changes to the orange cells or anywhere within the Tables (except column F).
A40: Step 1 - Fill out the "Fixed Lease Payment Receivable Schedule" section above (starting on row 10).
A41: a - If payments escalate over time, list beginning payment amount & # of payments to be received at that amount, then move to line #2
A42: and list the next payment amount & # of payments at that amount, etc.
A43: b - If an extension is deemed Reasonably Certain to be exercised, but the amount is listed as "negotiable", then use the lease
A44: payment amount just prior to the date of extension for those unknown amounts.
A45: c - If a future payment is variable based on an index or interest rate, then calculate those future payments using the current index or rate.
A46: d - If there is an Abated or Free Rent period (skipped payment) indicated in the lease contract, | C46: Desc of Lease Incentives
A47: indicate that with a $0 payment amount (col B) & the number of payments to be skipped (col C). | C47: ='Data Input'!H238 -> 0
A48: Make sure to put these skipped payments in the correct order chronologically. For example, if there
A49: is a Free Rent period for payment 13, then list the first 12 payments on the first line, then
A50: line #2 as $0 (col B) and 1 (col C), then line #3 as the continuing payments after the Free Rent period.
A51: e - If a Bonus payment from the lessor is included in the contract, subtract that amount from the payment closest to the proper
A52: chronological period (as described in d above). This may cause that payment amount to be negative.
A53: f - Use the blue box below to describe how payments change over time. For example - (a) Payment increases 5% every 10 yrs;
A54: (b) Appraisal to be completed every 25 years; or (c) Payment recalculated every 5 yrs based on CPI, etc.
A55: Also describe payment frequency if Less Often than Annually.
A59: g - If payments are Less Often than Annually,indicate this in the Payment Schedule above by listing first payment on the first row (1 in
A60: col C), then the 2nd row should show how many years to be skipped in col C ($0 in col B), then the 3rd row will show the 2nd payment.
A61: Repeat until all payments & all years are represented in the Payment Schdl (total in col C should tie to total yrs of lease term & cell B4).
A62: h - If there are not enough lines in the table above, use the table below to input the additional payment amounts, and the totals from
A63: the additional table will automatically be added to the Payment Schedule above.
A64: i - Verify that the total # of payments in cell B4 is the same as the sum of col C (cell C16).
A66: Additional Lease Payment Receivable Lines (if needed) | B66: Amount | C66: # of Payments
A67: Payment Amount #5 & # of Payments at this amount | B67: 0 | C67: 0
A68: Payment Amount #6 & # of Payments at this amount | B68: 0 | C68: 0
A69: Payment Amount #7 & # of Payments at this amount | B69: 0 | C69: 0
A70: Payment Amount #8 & # of Payments at this amount | B70: 0 | C70: 0
A71: Payment Amount #9 & # of Payments at this amount | B71: 0 | C71: 0
A72: Payment Amount #10 & # of Payments at this amount | B72: 0 | C72: 0
A73: Payment Amount #11 & # of Payments at this amount | B73: 0 | C73: 0
A74: Payment Amount #12 & # of Payments at this amount | B74: 0 | C74: 0
A75: Payment Amount #13 & # of Payments at this amount | B75: 0 | C75: 0
A76: Payment Amount #14 & # of Payments at this amount | B76: 0 | C76: 0
A77: Payment Amount #15 & # of Payments at this amount | B77: 0 | C77: 0
A78: Payment Amount #16 & # of Payments at this amount | B78: 0 | C78: 0
A79: Payment Amount #17 & # of Payments at this amount | B79: 0 | C79: 0
A80: Payment Amount #18 & # of Payments at this amount | B80: 0 | C80: 0
A81: Payment Amount #19 & # of Payments at this amount | B81: 0 | C81: 0
A82: Payment Amount #20 & # of Payments at this amount | B82: 0 | C82: 0
A83: Payment Amount #21 & # of Payments at this amount | B83: 0 | C83: 0
A84: Payment Amount #22 & # of Payments at this amount | B84: 0 | C84: 0
A85: Payment Amount #23 & # of Payments at this amount | B85: 0 | C85: 0
A86: Payment Amount #24 & # of Payments at this amount | B86: 0 | C86: 0
A87: Payment Amount #25 & # of Payments at this amount | B87: 0 | C87: 0
A88: Total Add'l Lease Payment Amts (will automatically be added to the Schedule above) | B88: =(B67*C67)+(B68*C68)+(B69*C69)+(B70*C70)+(B71*C71)+(B72*C72)+(B73*C73)+(B74*C74)+(B75*C75)+(B76*C76)+(B77*C77)+(B78*C78)+(B79*C79)+(B80*C80)+(B81*C81)+(B82*C82)+(B83*C83)+(B84*C84)+(B85*C85)+(B86*C86)+(B87*C87) -> 0 | C88: =SUM(C67:C87) -> 0
A90: Step 2 - Fill out the "Other Payment Considerations" section (starting on row 18) ONLY if instructed to do so on the Data Input tab
A91: (responses from Data Input tab are shown in col D).
A92: a - The Residual Value Guarantee line should only have an amount listed in Col B if it is Fixed In-Substance and not reliant on a future
A93: consideration (i.e. FMV of leased asset).
A94: b - The Allowance for Uncollectible Leases line should only have an amount listed in col C if economic circumstances, lessee
A95: creditworthiness, and historic information indicate a need for an allowance to be calculated. This amount is listed in col C because
A96: it will not be calculated as part of the Present Value of the Lease Receivable, but will instead reduce the Present Value after it is
A97: calculated as a contra-receivable.
A99: Steps 3 - 8 are OPTIONAL (calculation of Present Value and Amortization Tables)
A100: Step 3 - Click the Macro button below to Generate the first 2 columns of the Present Value (PV) Table.
A103: Step 4 - Using the Payment Receivable Schedule filled out in Steps 1 & 2, fill in the Payment Amounts into col F of the PV Table.
A104: a - If there are 12 payments for the 1st payment amount, and 6 payments for the 2nd payment amount, list the 1st amount in the
A105: first 12 rows of the Table, then the 2nd amount for the next 6 rows, and do the same for the remaining payment amounts listed
A106: in the Payment Schedule until all the payments are filled in on the Table.
A107: b - Make sure not to skip any Free Rent periods. If the Payment Schedule indicates the 13th payment is $0, then row 13 of the
A108: Table should be $0, same as the Payment Schedule.
A109: c - If there are any amounts listed for "Other Payment Considerations", add it to the final payment. For example, if the final
A110: payment is $20,000, and there is a Residual Value Guarantee listed for $5,000, then the final payment in the Table should be $25,000.
A111: d - Check to make sure that the sum of all the payments entered into col F of the Table is the same as the Total Undiscounted Cash
A112: Flows in cell B23.
A114: Step 5 - Click the Macro button below to Calculate Net Present Value and Generate the PV and Amortization Tables.
A118: Step 6 - Check data for accuracy:
A119: a - Check the date of the final payment in the Amortization Table and compare to Lease End Date in cell B8. Make sure the final
A120: payment date is reasonable in comparison to the Lease End Date (within same month if payments are Monthly, within the final
A121: quarter if Quarterly, etc).
A122: b - If payments change (there are amounts in Payment Amount #2 + rows), then check the dates the amounts change in the
A123: Amort Table (columns K & M) to make sure the payments change on the correct dates as per the Lease Contract.
A124: c - If 6a and 6b are BOTH correct, skip to Step 8 (Do NOT click the Start Over Macro Button).
A125: d - If 6a or 6b does not appear to be correct:
A126: i - Double-check the Instructions above (Steps 1 - 6), including the check for # of payments in 1i & check for Table payments in 4d.
A127: ii - Double-check cells B2-B8 by reviewing the Lease Contract. These cells automatically filled based on answers in the Data Input
A128: tab. Make any necessary corrections in the Data Input tab (NOT in cells B2-B8) - the corresponding question #s are referenced above.
A129: iii - Double-Check the Payment Schedule and Other Payment Considerations sections. Compare back to the Lease contract to
A130: verify, and correct as necessary.
A131: e - Once corrections have been made, click the Macro button below to Delete the PV & Amortization Tables.
A135: Step 7 - Repeat Steps 3-6 as needed until all checks (1i, 4d, 6a, 6b, and 6di-6diii) are correct.
A137: Step 8 - See Net Present Value calculated in cell B25 for the Lease Receivable and the Deferred Inflow of Resources in cell B28.
A138: Also, see Present Value Table in columns E-G,
A139: and Amortization Table in columns J-P.

Sheet Lease 7 - PV Calc
A1: Present Value Calculations tab - Lease 7 (column I) | B1: Contract # | C1: ='Data Input'!I58 -> 0
A2: Periodic Interest Rate (Section VII, #27-28 from Data Input tab) | B2: ='Data Input'!I266 -> 0
A3: Cash Flows at Beginning or End (Section V, #19) | B3: ='Data Input'!I179 -> 0 | C3: Important:
A4: Number of payments (Section V, #18) | B4: ='Data Input'!I172 -> 0 | C4: Do not insert/delete/move
A5: Frequency of payments (Section V, #17) | B5: ='Data Input'!I166 -> 0 | C5: cells B2:B8
A6: Date of first payment (Section V, #20) | B6: ='Data Input'!I185 -> 00:00:00 | C6: (macros depend on them)
A7: Lease Start Date (Section V, #12) | B7: ='Data Input'!I150 -> 00:00:00
A8: Lease End Date including Extensions (Section V, #15) | B8: ='Data Input'!I161 -> 00:00:00
A10: Fixed Lease Payment Receivable Schedule (Section VI, #21 & see instructions below): | B10: Amount | C10: # of Payments
A11: Payment Amount #1 & # of Payments at this amount | B11: 0 | C11: 0
A12: Payment Amount #2 & # of Payments at this amount | B12: 0 | C12: 0
A13: Payment Amount #3 & # of Payments at this amount | B13: 0 | C13: 0
A14: Payment Amount #4 & # of Payments at this amount | B14: 0 | C14: 0
A15: Totals from add'l table below (if needed) | B15: =B88 -> 0 | C15: =C88 -> 0
A16: Total Lease Payments (sum of all payment amounts * # of payments) | B16: =(B11*C11)+(B12*C12)+(B13*C13)+(B14*C14)+(B15) -> 0 | C16: =SUM(C11:C15) -> 0
D17: Response per
A18: Other Payment Considerations: | B18: Residual Value Guar | C18: Allow for Uncollectible Amt | D18: Data Input tab
A19: Residual Value Guarantee if Fixed-in-Substance (Section VI, #24a & b) | B19: 0 | D19: ='Data Input'!I224 -> 0
A20: Allowance for Uncollectible Leases (Section VI, #26)
A21: For example, could be calculated as a percentage of the total lease pmt rcvbl above | C21: 0 | D21: ='Data Input'!I242 -> 0
A22: Total Other Payment Considerations | B22: =SUM(B19:B21) -> 0
A23: Total Undiscounted Cash Flows (Total Payments + Other Considerations) | B23: =B16+B22 -> 0
C24: Important:
A25: Net Present Value (calculated after Macros below run) | B25: =SUM(G:G) -> 0 | C25: Do not insert/delete/move
C26: NPV must be cell B25
A27: Additions/Subtractions for Deferred Inflow of Resources (Section IV, #9-11) | B27: ='Data Input'!I124-'Data Input'!I127 -> 0 | C27: (macros depend on it)
A28: Deferred Inflow of Resources (calculated after Macros below run) | B28: =B25+B27 -> 0
A30: The Agency is not required to calculate the Present Value and/or enable Macros,
A31: but Steps 1 & 2 of the instructions below are REQUIRED to be completed.
A32: After completing Steps 1 & 2, if desired to calculate the Present Value, complete Steps 3 - 8:
A34: Note 1: First make sure your Excel settings are correct - | B34: See How to Enable Macros tab
A35: Note 2: Please do not Insert, Delete, or Move any cells, columns or rows as this could cause the Macros to fail.
A36: Note 3: The Blue Cells in columns B & C are for manual input, and the Present Value Table will need to be adjusted in column F.
A37: The Orange cells in columns B & C will automatically fill. Also, the Present Value and Amortization Tables will be generated with the
A38: Macro buttons. Please do not make changes to the orange cells or anywhere within the Tables (except column F).
A40: Step 1 - Fill out the "Fixed Lease Payment Receivable Schedule" section above (starting on row 10).
A41: a - If payments escalate over time, list beginning payment amount & # of payments to be received at that amount, then move to line #2
A42: and list the next payment amount & # of payments at that amount, etc.
A43: b - If an extension is deemed Reasonably Certain to be exercised, but the amount is listed as "negotiable", then use the lease
A44: payment amount just prior to the date of extension for those unknown amounts.
A45: c - If a future payment is variable based on an index or interest rate, then calculate those future payments using the current index or rate.
A46: d - If there is an Abated or Free Rent period (skipped payment) indicated in the lease contract, | C46: Desc of Lease Incentives
A47: indicate that with a $0 payment amount (col B) & the number of payments to be skipped (col C). | C47: ='Data Input'!I238 -> 0
A48: Make sure to put these skipped payments in the correct order chronologically. For example, if there
A49: is a Free Rent period for payment 13, then list the first 12 payments on the first line, then
A50: line #2 as $0 (col B) and 1 (col C), then line #3 as the continuing payments after the Free Rent period.
A51: e - If a Bonus payment from the lessor is included in the contract, subtract that amount from the payment closest to the proper
A52: chronological period (as described in d above). This may cause that payment amount to be negative.
A53: f - Use the blue box below to describe how payments change over time. For example - (a) Payment increases 5% every 10 yrs;
A54: (b) Appraisal to be completed every 25 years; or (c) Payment recalculated every 5 yrs based on CPI, etc.
A55: Also describe payment frequency if Less Often than Annually.
A59: g - If payments are Less Often than Annually,indicate this in the Payment Schedule above by listing first payment on the first row (1 in
A60: col C), then the 2nd row should show how many years to be skipped in col C ($0 in col B), then the 3rd row will show the 2nd payment.
A61: Repeat until all payments & all years are represented in the Payment Schdl (total in col C should tie to total yrs of lease term & cell B4).
A62: h - If there are not enough lines in the table above, use the table below to input the additional payment amounts, and the totals from
A63: the additional table will automatically be added to the Payment Schedule above.
A64: i - Verify that the total # of payments in cell B4 is the same as the sum of col C (cell C16).
A66: Additional Lease Payment Receivable Lines (if needed) | B66: Amount | C66: # of Payments
A67: Payment Amount #5 & # of Payments at this amount | B67: 0 | C67: 0
A68: Payment Amount #6 & # of Payments at this amount | B68: 0 | C68: 0
A69: Payment Amount #7 & # of Payments at this amount | B69: 0 | C69: 0
A70: Payment Amount #8 & # of Payments at this amount | B70: 0 | C70: 0
A71: Payment Amount #9 & # of Payments at this amount | B71: 0 | C71: 0
A72: Payment Amount #10 & # of Payments at this amount | B72: 0 | C72: 0
A73: Payment Amount #11 & # of Payments at this amount | B73: 0 | C73: 0
A74: Payment Amount #12 & # of Payments at this amount | B74: 0 | C74: 0
A75: Payment Amount #13 & # of Payments at this amount | B75: 0 | C75: 0
A76: Payment Amount #14 & # of Payments at this amount | B76: 0 | C76: 0
A77: Payment Amount #15 & # of Payments at this amount | B77: 0 | C77: 0
A78: Payment Amount #16 & # of Payments at this amount | B78: 0 | C78: 0
A79: Payment Amount #17 & # of Payments at this amount | B79: 0 | C79: 0
A80: Payment Amount #18 & # of Payments at this amount | B80: 0 | C80: 0
A81: Payment Amount #19 & # of Payments at this amount | B81: 0 | C81: 0
A82: Payment Amount #20 & # of Payments at this amount | B82: 0 | C82: 0
A83: Payment Amount #21 & # of Payments at this amount | B83: 0 | C83: 0
A84: Payment Amount #22 & # of Payments at this amount | B84: 0 | C84: 0
A85: Payment Amount #23 & # of Payments at this amount | B85: 0 | C85: 0
A86: Payment Amount #24 & # of Payments at this amount | B86: 0 | C86: 0
A87: Payment Amount #25 & # of Payments at this amount | B87: 0 | C87: 0
A88: Total Add'l Lease Payment Amts (will automatically be added to the Schedule above) | B88: =(B67*C67)+(B68*C68)+(B69*C69)+(B70*C70)+(B71*C71)+(B72*C72)+(B73*C73)+(B74*C74)+(B75*C75)+(B76*C76)+(B77*C77)+(B78*C78)+(B79*C79)+(B80*C80)+(B81*C81)+(B82*C82)+(B83*C83)+(B84*C84)+(B85*C85)+(B86*C86)+(B87*C87) -> 0 | C88: =SUM(C67:C87) -> 0
A90: Step 2 - Fill out the "Other Payment Considerations" section (starting on row 18) ONLY if instructed to do so on the Data Input tab
A91: (responses from Data Input tab are shown in col D).
A92: a - The Residual Value Guarantee line should only have an amount listed in Col B if it is Fixed In-Substance and not reliant on a future
A93: consideration (i.e. FMV of leased asset).
A94: b - The Allowance for Uncollectible Leases line should only have an amount listed in col C if economic circumstances, lessee
A95: creditworthiness, and historic information indicate a need for an allowance to be calculated. This amount is listed in col C because
A96: it will not be calculated as part of the Present Value of the Lease Receivable, but will instead reduce the Present Value after it is
A97: calculated as a contra-receivable.
A99: Steps 3 - 8 are OPTIONAL (calculation of Present Value and Amortization Tables)
A100: Step 3 - Click the Macro button below to Generate the first 2 columns of the Present Value (PV) Table.
A103: Step 4 - Using the Payment Receivable Schedule filled out in Steps 1 & 2, fill in the Payment Amounts into col F of the PV Table.
A104: a - If there are 12 payments for the 1st payment amount, and 6 payments for the 2nd payment amount, list the 1st amount in the
A105: first 12 rows of the Table, then the 2nd amount for the next 6 rows, and do the same for the remaining payment amounts listed
A106: in the Payment Schedule until all the payments are filled in on the Table.
A107: b - Make sure not to skip any Free Rent periods. If the Payment Schedule indicates the 13th payment is $0, then row 13 of the
A108: Table should be $0, same as the Payment Schedule.
A109: c - If there are any amounts listed for "Other Payment Considerations", add it to the final payment. For example, if the final
A110: payment is $20,000, and there is a Residual Value Guarantee listed for $5,000, then the final payment in the Table should be $25,000.
A111: d - Check to make sure that the sum of all the payments entered into col F of the Table is the same as the Total Undiscounted Cash
A112: Flows in cell B23.
A114: Step 5 - Click the Macro button below to Calculate Net Present Value and Generate the PV and Amortization Tables.
A118: Step 6 - Check data for accuracy:
A119: a - Check the date of the final payment in the Amortization Table and compare to Lease End Date in cell B8. Make sure the final
A120: payment date is reasonable in comparison to the Lease End Date (within same month if payments are Monthly, within the final
A121: quarter if Quarterly, etc).
A122: b - If payments change (there are amounts in Payment Amount #2 + rows), then check the dates the amounts change in the
A123: Amort Table (columns K & M) to make sure the payments change on the correct dates as per the Lease Contract.
A124: c - If 6a and 6b are BOTH correct, skip to Step 8 (Do NOT click the Start Over Macro Button).
A125: d - If 6a or 6b does not appear to be correct:
A126: i - Double-check the Instructions above (Steps 1 - 6), including the check for # of payments in 1i & check for Table payments in 4d.
A127: ii - Double-check cells B2-B8 by reviewing the Lease Contract. These cells automatically filled based on answers in the Data Input
A128: tab. Make any necessary corrections in the Data Input tab (NOT in cells B2-B8) - the corresponding question #s are referenced above.
A129: iii - Double-Check the Payment Schedule and Other Payment Considerations sections. Compare back to the Lease contract to
A130: verify, and correct as necessary.
A131: e - Once corrections have been made, click the Macro button below to Delete the PV & Amortization Tables.
A135: Step 7 - Repeat Steps 3-6 as needed until all checks (1i, 4d, 6a, 6b, and 6di-6diii) are correct.
A137: Step 8 - See Net Present Value calculated in cell B25 for the Lease Receivable and the Deferred Inflow of Resources in cell B28.
A138: Also, see Present Value Table in columns E-G,
A139: and Amortization Table in columns J-P.

Sheet Lease 8 - PV Calc
A1: Present Value Calculations tab - Lease 8 (column J) | B1: Contract # | C1: ='Data Input'!J58 -> 0
A2: Periodic Interest Rate (Section VII, #27-28 from Data Input tab) | B2: ='Data Input'!J266 -> 0
A3: Cash Flows at Beginning or End (Section V, #19) | B3: ='Data Input'!J179 -> 0 | C3: Important:
A4: Number of payments (Section V, #18) | B4: ='Data Input'!J172 -> 0 | C4: Do not insert/delete/move
A5: Frequency of payments (Section V, #17) | B5: ='Data Input'!J166 -> 0 | C5: cells B2:B8
A6: Date of first payment (Section V, #20) | B6: ='Data Input'!J185 -> 00:00:00 | C6: (macros depend on them)
A7: Lease Start Date (Section V, #12) | B7: ='Data Input'!J150 -> 00:00:00
A8: Lease End Date including Extensions (Section V, #15) | B8: ='Data Input'!J161 -> 00:00:00
A10: Fixed Lease Payment Receivable Schedule (Section VI, #21 & see instructions below): | B10: Amount | C10: # of Payments
A11: Payment Amount #1 & # of Payments at this amount | B11: 0 | C11: 0
A12: Payment Amount #2 & # of Payments at this amount | B12: 0 | C12: 0
A13: Payment Amount #3 & # of Payments at this amount | B13: 0 | C13: 0
A14: Payment Amount #4 & # of Payments at this amount | B14: 0 | C14: 0
A15: Totals from add'l table below (if needed) | B15: =B88 -> 0 | C15: =C88 -> 0
A16: Total Lease Payments (sum of all payment amounts * # of payments) | B16: =(B11*C11)+(B12*C12)+(B13*C13)+(B14*C14)+(B15) -> 0 | C16: =SUM(C11:C15) -> 0
D17: Response per
A18: Other Payment Considerations: | B18: Residual Value Guar | C18: Allow for Uncollectible Amt | D18: Data Input tab
A19: Residual Value Guarantee if Fixed-in-Substance (Section VI, #24a & b) | B19: 0 | D19: ='Data Input'!J224 -> 0
A20: Allowance for Uncollectible Leases (Section VI, #26)
A21: For example, could be calculated as a percentage of the total lease pmt rcvbl above | C21: 0 | D21: ='Data Input'!J242 -> 0
A22: Total Other Payment Considerations | B22: =SUM(B19:B21) -> 0
A23: Total Undiscounted Cash Flows (Total Payments + Other Considerations) | B23: =B16+B22 -> 0
C24: Important:
A25: Net Present Value (calculated after Macros below run) | B25: =SUM(G:G) -> 0 | C25: Do not insert/delete/move
C26: NPV must be cell B25
A27: Additions/Subtractions for Deferred Inflow of Resources (Section IV, #9-11) | B27: ='Data Input'!J124-'Data Input'!J127 -> 0 | C27: (macros depend on it)
A28: Deferred Inflow of Resources (calculated after Macros below run) | B28: =B25+B27 -> 0
A30: The Agency is not required to calculate the Present Value and/or enable Macros,
A31: but Steps 1 & 2 of the instructions below are REQUIRED to be completed.
A32: After completing Steps 1 & 2, if desired to calculate the Present Value, complete Steps 3 - 8:
A34: Note 1: First make sure your Excel settings are correct - | B34: See How to Enable Macros tab
A35: Note 2: Please do not Insert, Delete, or Move any cells, columns or rows as this could cause the Macros to fail.
A36: Note 3: The Blue Cells in columns B & C are for manual input, and the Present Value Table will need to be adjusted in column F.
A37: The Orange cells in columns B & C will automatically fill. Also, the Present Value and Amortization Tables will be generated with the
A38: Macro buttons. Please do not make changes to the orange cells or anywhere within the Tables (except column F).
A40: Step 1 - Fill out the "Fixed Lease Payment Receivable Schedule" section above (starting on row 10).
A41: a - If payments escalate over time, list beginning payment amount & # of payments to be received at that amount, then move to line #2
A42: and list the next payment amount & # of payments at that amount, etc.
A43: b - If an extension is deemed Reasonably Certain to be exercised, but the amount is listed as "negotiable", then use the lease
A44: payment amount just prior to the date of extension for those unknown amounts.
A45: c - If a future payment is variable based on an index or interest rate, then calculate those future payments using the current index or rate.
A46: d - If there is an Abated or Free Rent period (skipped payment) indicated in the lease contract, | C46: Desc of Lease Incentives
A47: indicate that with a $0 payment amount (col B) & the number of payments to be skipped (col C). | C47: ='Data Input'!J238 -> 0
A48: Make sure to put these skipped payments in the correct order chronologically. For example, if there
A49: is a Free Rent period for payment 13, then list the first 12 payments on the first line, then
A50: line #2 as $0 (col B) and 1 (col C), then line #3 as the continuing payments after the Free Rent period.
A51: e - If a Bonus payment from the lessor is included in the contract, subtract that amount from the payment closest to the proper
A52: chronological period (as described in d above). This may cause that payment amount to be negative.
A53: f - Use the blue box below to describe how payments change over time. For example - (a) Payment increases 5% every 10 yrs;
A54: (b) Appraisal to be completed every 25 years; or (c) Payment recalculated every 5 yrs based on CPI, etc.
A55: Also describe payment frequency if Less Often than Annually.
A59: g - If payments are Less Often than Annually,indicate this in the Payment Schedule above by listing first payment on the first row (1 in
A60: col C), then the 2nd row should show how many years to be skipped in col C ($0 in col B), then the 3rd row will show the 2nd payment.
A61: Repeat until all payments & all years are represented in the Payment Schdl (total in col C should tie to total yrs of lease term & cell B4).
A62: h - If there are not enough lines in the table above, use the table below to input the additional payment amounts, and the totals from
A63: the additional table will automatically be added to the Payment Schedule above.
A64: i - Verify that the total # of payments in cell B4 is the same as the sum of col C (cell C16).
A66: Additional Lease Payment Receivable Lines (if needed) | B66: Amount | C66: # of Payments
A67: Payment Amount #5 & # of Payments at this amount | B67: 0 | C67: 0
A68: Payment Amount #6 & # of Payments at this amount | B68: 0 | C68: 0
A69: Payment Amount #7 & # of Payments at this amount | B69: 0 | C69: 0
A70: Payment Amount #8 & # of Payments at this amount | B70: 0 | C70: 0
A71: Payment Amount #9 & # of Payments at this amount | B71: 0 | C71: 0
A72: Payment Amount #10 & # of Payments at this amount | B72: 0 | C72: 0
A73: Payment Amount #11 & # of Payments at this amount | B73: 0 | C73: 0
A74: Payment Amount #12 & # of Payments at this amount | B74: 0 | C74: 0
A75: Payment Amount #13 & # of Payments at this amount | B75: 0 | C75: 0
A76: Payment Amount #14 & # of Payments at this amount | B76: 0 | C76: 0
A77: Payment Amount #15 & # of Payments at this amount | B77: 0 | C77: 0
A78: Payment Amount #16 & # of Payments at this amount | B78: 0 | C78: 0
A79: Payment Amount #17 & # of Payments at this amount | B79: 0 | C79: 0
A80: Payment Amount #18 & # of Payments at this amount | B80: 0 | C80: 0
A81: Payment Amount #19 & # of Payments at this amount | B81: 0 | C81: 0
A82: Payment Amount #20 & # of Payments at this amount | B82: 0 | C82: 0
A83: Payment Amount #21 & # of Payments at this amount | B83: 0 | C83: 0
A84: Payment Amount #22 & # of Payments at this amount | B84: 0 | C84: 0
A85: Payment Amount #23 & # of Payments at this amount | B85: 0 | C85: 0
A86: Payment Amount #24 & # of Payments at this amount | B86: 0 | C86: 0
A87: Payment Amount #25 & # of Payments at this amount | B87: 0 | C87: 0
A88: Total Add'l Lease Payment Amts (will automatically be added to the Schedule above) | B88: =(B67*C67)+(B68*C68)+(B69*C69)+(B70*C70)+(B71*C71)+(B72*C72)+(B73*C73)+(B74*C74)+(B75*C75)+(B76*C76)+(B77*C77)+(B78*C78)+(B79*C79)+(B80*C80)+(B81*C81)+(B82*C82)+(B83*C83)+(B84*C84)+(B85*C85)+(B86*C86)+(B87*C87) -> 0 | C88: =SUM(C67:C87) -> 0
A90: Step 2 - Fill out the "Other Payment Considerations" section (starting on row 18) ONLY if instructed to do so on the Data Input tab
A91: (responses from Data Input tab are shown in col D).
A92: a - The Residual Value Guarantee line should only have an amount listed in Col B if it is Fixed In-Substance and not reliant on a future
A93: consideration (i.e. FMV of leased asset).
A94: b - The Allowance for Uncollectible Leases line should only have an amount listed in col C if economic circumstances, lessee
A95: creditworthiness, and historic information indicate a need for an allowance to be calculated. This amount is listed in col C because
A96: it will not be calculated as part of the Present Value of the Lease Receivable, but will instead reduce the Present Value after it is
A97: calculated as a contra-receivable.
A99: Steps 3 - 8 are OPTIONAL (calculation of Present Value and Amortization Tables)
A100: Step 3 - Click the Macro button below to Generate the first 2 columns of the Present Value (PV) Table.
A103: Step 4 - Using the Payment Receivable Schedule filled out in Steps 1 & 2, fill in the Payment Amounts into col F of the PV Table.
A104: a - If there are 12 payments for the 1st payment amount, and 6 payments for the 2nd payment amount, list the 1st amount in the
A105: first 12 rows of the Table, then the 2nd amount for the next 6 rows, and do the same for the remaining payment amounts listed
A106: in the Payment Schedule until all the payments are filled in on the Table.
A107: b - Make sure not to skip any Free Rent periods. If the Payment Schedule indicates the 13th payment is $0, then row 13 of the
A108: Table should be $0, same as the Payment Schedule.
A109: c - If there are any amounts listed for "Other Payment Considerations", add it to the final payment. For example, if the final
A110: payment is $20,000, and there is a Residual Value Guarantee listed for $5,000, then the final payment in the Table should be $25,000.
A111: d - Check to make sure that the sum of all the payments entered into col F of the Table is the same as the Total Undiscounted Cash
A112: Flows in cell B23.
A114: Step 5 - Click the Macro button below to Calculate Net Present Value and Generate the PV and Amortization Tables.
A118: Step 6 - Check data for accuracy:
A119: a - Check the date of the final payment in the Amortization Table and compare to Lease End Date in cell B8. Make sure the final
A120: payment date is reasonable in comparison to the Lease End Date (within same month if payments are Monthly, within the final
A121: quarter if Quarterly, etc).
A122: b - If payments change (there are amounts in Payment Amount #2 + rows), then check the dates the amounts change in the
A123: Amort Table (columns K & M) to make sure the payments change on the correct dates as per the Lease Contract.
A124: c - If 6a and 6b are BOTH correct, skip to Step 8 (Do NOT click the Start Over Macro Button).
A125: d - If 6a or 6b does not appear to be correct:
A126: i - Double-check the Instructions above (Steps 1 - 6), including the check for # of payments in 1i & check for Table payments in 4d.
A127: ii - Double-check cells B2-B8 by reviewing the Lease Contract. These cells automatically filled based on answers in the Data Input
A128: tab. Make any necessary corrections in the Data Input tab (NOT in cells B2-B8) - the corresponding question #s are referenced above.
A129: iii - Double-Check the Payment Schedule and Other Payment Considerations sections. Compare back to the Lease contract to
A130: verify, and correct as necessary.
A131: e - Once corrections have been made, click the Macro button below to Delete the PV & Amortization Tables.
A135: Step 7 - Repeat Steps 3-6 as needed until all checks (1i, 4d, 6a, 6b, and 6di-6diii) are correct.
A137: Step 8 - See Net Present Value calculated in cell B25 for the Lease Receivable and the Deferred Inflow of Resources in cell B28.
A138: Also, see Present Value Table in columns E-G,
A139: and Amortization Table in columns J-P.

Sheet Lease 9 - PV Calc
A1: Present Value Calculations tab - Lease 9 (column K) | B1: Contract # | C1: ='Data Input'!K58 -> 0
A2: Periodic Interest Rate (Section VII, #27-28 from Data Input tab) | B2: ='Data Input'!K266 -> 0
A3: Cash Flows at Beginning or End (Section V, #19) | B3: ='Data Input'!K179 -> 0 | C3: Important:
A4: Number of payments (Section V, #18) | B4: ='Data Input'!K172 -> 0 | C4: Do not insert/delete/move
A5: Frequency of payments (Section V, #17) | B5: ='Data Input'!K166 -> 0 | C5: cells B2:B8
A6: Date of first payment (Section V, #20) | B6: ='Data Input'!K185 -> 00:00:00 | C6: (macros depend on them)
A7: Lease Start Date (Section V, #12) | B7: ='Data Input'!K150 -> 00:00:00
A8: Lease End Date including Extensions (Section V, #15) | B8: ='Data Input'!K161 -> 00:00:00
A10: Fixed Lease Payment Receivable Schedule (Section VI, #21 & see instructions below): | B10: Amount | C10: # of Payments
A11: Payment Amount #1 & # of Payments at this amount | B11: 0 | C11: 0
A12: Payment Amount #2 & # of Payments at this amount | B12: 0 | C12: 0
A13: Payment Amount #3 & # of Payments at this amount | B13: 0 | C13: 0
A14: Payment Amount #4 & # of Payments at this amount | B14: 0 | C14: 0
A15: Totals from add'l table below (if needed) | B15: =B88 -> 0 | C15: =C88 -> 0
A16: Total Lease Payments (sum of all payment amounts * # of payments) | B16: =(B11*C11)+(B12*C12)+(B13*C13)+(B14*C14)+(B15) -> 0 | C16: =SUM(C11:C15) -> 0
D17: Response per
A18: Other Payment Considerations: | B18: Residual Value Guar | C18: Allow for Uncollectible Amt | D18: Data Input tab
A19: Residual Value Guarantee if Fixed-in-Substance (Section VI, #24a & b) | B19: 0 | D19: ='Data Input'!K224 -> 0
A20: Allowance for Uncollectible Leases (Section VI, #26)
A21: For example, could be calculated as a percentage of the total lease pmt rcvbl above | C21: 0 | D21: ='Data Input'!K242 -> 0
A22: Total Other Payment Considerations | B22: =SUM(B19:B21) -> 0
A23: Total Undiscounted Cash Flows (Total Payments + Other Considerations) | B23: =B16+B22 -> 0
C24: Important:
A25: Net Present Value (calculated after Macros below run) | B25: =SUM(G:G) -> 0 | C25: Do not insert/delete/move
C26: NPV must be cell B25
A27: Additions/Subtractions for Deferred Inflow of Resources (Section IV, #9-11) | B27: ='Data Input'!K124-'Data Input'!K127 -> 0 | C27: (macros depend on it)
A28: Deferred Inflow of Resources (calculated after Macros below run) | B28: =B25+B27 -> 0
A30: The Agency is not required to calculate the Present Value and/or enable Macros,
A31: but Steps 1 & 2 of the instructions below are REQUIRED to be completed.
A32: After completing Steps 1 & 2, if desired to calculate the Present Value, complete Steps 3 - 8:
A34: Note 1: First make sure your Excel settings are correct - | B34: See How to Enable Macros tab
A35: Note 2: Please do not Insert, Delete, or Move any cells, columns or rows as this could cause the Macros to fail.
A36: Note 3: The Blue Cells in columns B & C are for manual input, and the Present Value Table will need to be adjusted in column F.
A37: The Orange cells in columns B & C will automatically fill. Also, the Present Value and Amortization Tables will be generated with the
A38: Macro buttons. Please do not make changes to the orange cells or anywhere within the Tables (except column F).
A40: Step 1 - Fill out the "Fixed Lease Payment Receivable Schedule" section above (starting on row 10).
A41: a - If payments escalate over time, list beginning payment amount & # of payments to be received at that amount, then move to line #2
A42: and list the next payment amount & # of payments at that amount, etc.
A43: b - If an extension is deemed Reasonably Certain to be exercised, but the amount is listed as "negotiable", then use the lease
A44: payment amount just prior to the date of extension for those unknown amounts.
A45: c - If a future payment is variable based on an index or interest rate, then calculate those future payments using the current index or rate.
A46: d - If there is an Abated or Free Rent period (skipped payment) indicated in the lease contract, | C46: Desc of Lease Incentives
A47: indicate that with a $0 payment amount (col B) & the number of payments to be skipped (col C). | C47: ='Data Input'!K238 -> 0
A48: Make sure to put these skipped payments in the correct order chronologically. For example, if there
A49: is a Free Rent period for payment 13, then list the first 12 payments on the first line, then
A50: line #2 as $0 (col B) and 1 (col C), then line #3 as the continuing payments after the Free Rent period.
A51: e - If a Bonus payment from the lessor is included in the contract, subtract that amount from the payment closest to the proper
A52: chronological period (as described in d above). This may cause that payment amount to be negative.
A53: f - Use the blue box below to describe how payments change over time. For example - (a) Payment increases 5% every 10 yrs;
A54: (b) Appraisal to be completed every 25 years; or (c) Payment recalculated every 5 yrs based on CPI, etc.
A55: Also describe payment frequency if Less Often than Annually.
A59: g - If payments are Less Often than Annually,indicate this in the Payment Schedule above by listing first payment on the first row (1 in
A60: col C), then the 2nd row should show how many years to be skipped in col C ($0 in col B), then the 3rd row will show the 2nd payment.
A61: Repeat until all payments & all years are represented in the Payment Schdl (total in col C should tie to total yrs of lease term & cell B4).
A62: h - If there are not enough lines in the table above, use the table below to input the additional payment amounts, and the totals from
A63: the additional table will automatically be added to the Payment Schedule above.
A64: i - Verify that the total # of payments in cell B4 is the same as the sum of col C (cell C16).
A66: Additional Lease Payment Receivable Lines (if needed) | B66: Amount | C66: # of Payments
A67: Payment Amount #5 & # of Payments at this amount | B67: 0 | C67: 0
A68: Payment Amount #6 & # of Payments at this amount | B68: 0 | C68: 0
A69: Payment Amount #7 & # of Payments at this amount | B69: 0 | C69: 0
A70: Payment Amount #8 & # of Payments at this amount | B70: 0 | C70: 0
A71: Payment Amount #9 & # of Payments at this amount | B71: 0 | C71: 0
A72: Payment Amount #10 & # of Payments at this amount | B72: 0 | C72: 0
A73: Payment Amount #11 & # of Payments at this amount | B73: 0 | C73: 0
A74: Payment Amount #12 & # of Payments at this amount | B74: 0 | C74: 0
A75: Payment Amount #13 & # of Payments at this amount | B75: 0 | C75: 0
A76: Payment Amount #14 & # of Payments at this amount | B76: 0 | C76: 0
A77: Payment Amount #15 & # of Payments at this amount | B77: 0 | C77: 0
A78: Payment Amount #16 & # of Payments at this amount | B78: 0 | C78: 0
A79: Payment Amount #17 & # of Payments at this amount | B79: 0 | C79: 0
A80: Payment Amount #18 & # of Payments at this amount | B80: 0 | C80: 0
A81: Payment Amount #19 & # of Payments at this amount | B81: 0 | C81: 0
A82: Payment Amount #20 & # of Payments at this amount | B82: 0 | C82: 0
A83: Payment Amount #21 & # of Payments at this amount | B83: 0 | C83: 0
A84: Payment Amount #22 & # of Payments at this amount | B84: 0 | C84: 0
A85: Payment Amount #23 & # of Payments at this amount | B85: 0 | C85: 0
A86: Payment Amount #24 & # of Payments at this amount | B86: 0 | C86: 0
A87: Payment Amount #25 & # of Payments at this amount | B87: 0 | C87: 0
A88: Total Add'l Lease Payment Amts (will automatically be added to the Schedule above) | B88: =(B67*C67)+(B68*C68)+(B69*C69)+(B70*C70)+(B71*C71)+(B72*C72)+(B73*C73)+(B74*C74)+(B75*C75)+(B76*C76)+(B77*C77)+(B78*C78)+(B79*C79)+(B80*C80)+(B81*C81)+(B82*C82)+(B83*C83)+(B84*C84)+(B85*C85)+(B86*C86)+(B87*C87) -> 0 | C88: =SUM(C67:C87) -> 0
A90: Step 2 - Fill out the "Other Payment Considerations" section (starting on row 18) ONLY if instructed to do so on the Data Input tab
A91: (responses from Data Input tab are shown in col D).
A92: a - The Residual Value Guarantee line should only have an amount listed in Col B if it is Fixed In-Substance and not reliant on a future
A93: consideration (i.e. FMV of leased asset).
A94: b - The Allowance for Uncollectible Leases line should only have an amount listed in col C if economic circumstances, lessee
A95: creditworthiness, and historic information indicate a need for an allowance to be calculated. This amount is listed in col C because
A96: it will not be calculated as part of the Present Value of the Lease Receivable, but will instead reduce the Present Value after it is
A97: calculated as a contra-receivable.
A99: Steps 3 - 8 are OPTIONAL (calculation of Present Value and Amortization Tables)
A100: Step 3 - Click the Macro button below to Generate the first 2 columns of the Present Value (PV) Table.
A103: Step 4 - Using the Payment Receivable Schedule filled out in Steps 1 & 2, fill in the Payment Amounts into col F of the PV Table.
A104: a - If there are 12 payments for the 1st payment amount, and 6 payments for the 2nd payment amount, list the 1st amount in the
A105: first 12 rows of the Table, then the 2nd amount for the next 6 rows, and do the same for the remaining payment amounts listed
A106: in the Payment Schedule until all the payments are filled in on the Table.
A107: b - Make sure not to skip any Free Rent periods. If the Payment Schedule indicates the 13th payment is $0, then row 13 of the
A108: Table should be $0, same as the Payment Schedule.
A109: c - If there are any amounts listed for "Other Payment Considerations", add it to the final payment. For example, if the final
A110: payment is $20,000, and there is a Residual Value Guarantee listed for $5,000, then the final payment in the Table should be $25,000.
A111: d - Check to make sure that the sum of all the payments entered into col F of the Table is the same as the Total Undiscounted Cash
A112: Flows in cell B23.
A114: Step 5 - Click the Macro button below to Calculate Net Present Value and Generate the PV and Amortization Tables.
A118: Step 6 - Check data for accuracy:
A119: a - Check the date of the final payment in the Amortization Table and compare to Lease End Date in cell B8. Make sure the final
A120: payment date is reasonable in comparison to the Lease End Date (within same month if payments are Monthly, within the final
A121: quarter if Quarterly, etc).
A122: b - If payments change (there are amounts in Payment Amount #2 + rows), then check the dates the amounts change in the
A123: Amort Table (columns K & M) to make sure the payments change on the correct dates as per the Lease Contract.
A124: c - If 6a and 6b are BOTH correct, skip to Step 8 (Do NOT click the Start Over Macro Button).
A125: d - If 6a or 6b does not appear to be correct:
A126: i - Double-check the Instructions above (Steps 1 - 6), including the check for # of payments in 1i & check for Table payments in 4d.
A127: ii - Double-check cells B2-B8 by reviewing the Lease Contract. These cells automatically filled based on answers in the Data Input
A128: tab. Make any necessary corrections in the Data Input tab (NOT in cells B2-B8) - the corresponding question #s are referenced above.
A129: iii - Double-Check the Payment Schedule and Other Payment Considerations sections. Compare back to the Lease contract to
A130: verify, and correct as necessary.
A131: e - Once corrections have been made, click the Macro button below to Delete the PV & Amortization Tables.
A135: Step 7 - Repeat Steps 3-6 as needed until all checks (1i, 4d, 6a, 6b, and 6di-6diii) are correct.
A137: Step 8 - See Net Present Value calculated in cell B25 for the Lease Receivable and the Deferred Inflow of Resources in cell B28.
A138: Also, see Present Value Table in columns E-G,
A139: and Amortization Table in columns J-P.

Sheet Lease 10 - PV Calc
A1: Present Value Calculations tab - Lease 10 (column L) | B1: Contract # | C1: ='Data Input'!L58 -> 0
A2: Periodic Interest Rate (Section VII, #27-28 from Data Input tab) | B2: ='Data Input'!L266 -> 0
A3: Cash Flows at Beginning or End (Section V, #19) | B3: ='Data Input'!L179 -> 0 | C3: Important:
A4: Number of payments (Section V, #18) | B4: ='Data Input'!L172 -> 0 | C4: Do not insert/delete/move
A5: Frequency of payments (Section V, #17) | B5: ='Data Input'!L166 -> 0 | C5: cells B2:B8
A6: Date of first payment (Section V, #20) | B6: ='Data Input'!L185 -> 00:00:00 | C6: (macros depend on them)
A7: Lease Start Date (Section V, #12) | B7: ='Data Input'!L150 -> 00:00:00
A8: Lease End Date including Extensions (Section V, #15) | B8: ='Data Input'!L161 -> 00:00:00
A10: Fixed Lease Payment Receivable Schedule (Section VI, #21 & see instructions below): | B10: Amount | C10: # of Payments
A11: Payment Amount #1 & # of Payments at this amount | B11: 0 | C11: 0
A12: Payment Amount #2 & # of Payments at this amount | B12: 0 | C12: 0
A13: Payment Amount #3 & # of Payments at this amount | B13: 0 | C13: 0
A14: Payment Amount #4 & # of Payments at this amount | B14: 0 | C14: 0
A15: Totals from add'l table below (if needed) | B15: =B88 -> 0 | C15: =C88 -> 0
A16: Total Lease Payments (sum of all payment amounts * # of payments) | B16: =(B11*C11)+(B12*C12)+(B13*C13)+(B14*C14)+(B15) -> 0 | C16: =SUM(C11:C15) -> 0
D17: Response per
A18: Other Payment Considerations: | B18: Residual Value Guar | C18: Allow for Uncollectible Amt | D18: Data Input tab
A19: Residual Value Guarantee if Fixed-in-Substance (Section VI, #24a & b) | B19: 0 | D19: ='Data Input'!L224 -> 0
A20: Allowance for Uncollectible Leases (Section VI, #26)
A21: For example, could be calculated as a percentage of the total lease pmt rcvbl above | C21: 0 | D21: ='Data Input'!L242 -> 0
A22: Total Other Payment Considerations | B22: =SUM(B19:B21) -> 0
A23: Total Undiscounted Cash Flows (Total Payments + Other Considerations) | B23: =B16+B22 -> 0
C24: Important:
A25: Net Present Value (calculated after Macros below run) | B25: =SUM(G:G) -> 0 | C25: Do not insert/delete/move
C26: NPV must be cell B25
A27: Additions/Subtractions for Deferred Inflow of Resources (Section IV, #9-11) | B27: ='Data Input'!L124-'Data Input'!L127 -> 0 | C27: (macros depend on it)
A28: Deferred Inflow of Resources (calculated after Macros below run) | B28: =B25+B27 -> 0
A30: The Agency is not required to calculate the Present Value and/or enable Macros,
A31: but Steps 1 & 2 of the instructions below are REQUIRED to be completed.
A32: After completing Steps 1 & 2, if desired to calculate the Present Value, complete Steps 3 - 8:
A34: Note 1: First make sure your Excel settings are correct - | B34: See How to Enable Macros tab
A35: Note 2: Please do not Insert, Delete, or Move any cells, columns or rows as this could cause the Macros to fail.
A36: Note 3: The Blue Cells in columns B & C are for manual input, and the Present Value Table will need to be adjusted in column F.
A37: The Orange cells in columns B & C will automatically fill. Also, the Present Value and Amortization Tables will be generated with the
A38: Macro buttons. Please do not make changes to the orange cells or anywhere within the Tables (except column F).
A40: Step 1 - Fill out the "Fixed Lease Payment Receivable Schedule" section above (starting on row 10).
A41: a - If payments escalate over time, list beginning payment amount & # of payments to be received at that amount, then move to line #2
A42: and list the next payment amount & # of payments at that amount, etc.
A43: b - If an extension is deemed Reasonably Certain to be exercised, but the amount is listed as "negotiable", then use the lease
A44: payment amount just prior to the date of extension for those unknown amounts.
A45: c - If a future payment is variable based on an index or interest rate, then calculate those future payments using the current index or rate.
A46: d - If there is an Abated or Free Rent period (skipped payment) indicated in the lease contract, | C46: Desc of Lease Incentives
A47: indicate that with a $0 payment amount (col B) & the number of payments to be skipped (col C). | C47: ='Data Input'!L238 -> 0
A48: Make sure to put these skipped payments in the correct order chronologically. For example, if there
A49: is a Free Rent period for payment 13, then list the first 12 payments on the first line, then
A50: line #2 as $0 (col B) and 1 (col C), then line #3 as the continuing payments after the Free Rent period.
A51: e - If a Bonus payment from the lessor is included in the contract, subtract that amount from the payment closest to the proper
A52: chronological period (as described in d above). This may cause that payment amount to be negative.
A53: f - Use the blue box below to describe how payments change over time. For example - (a) Payment increases 5% every 10 yrs;
A54: (b) Appraisal to be completed every 25 years; or (c) Payment recalculated every 5 yrs based on CPI, etc.
A55: Also describe payment frequency if Less Often than Annually.
A59: g - If payments are Less Often than Annually,indicate this in the Payment Schedule above by listing first payment on the first row (1 in
A60: col C), then the 2nd row should show how many years to be skipped in col C ($0 in col B), then the 3rd row will show the 2nd payment.
A61: Repeat until all payments & all years are represented in the Payment Schdl (total in col C should tie to total yrs of lease term & cell B4).
A62: h - If there are not enough lines in the table above, use the table below to input the additional payment amounts, and the totals from
A63: the additional table will automatically be added to the Payment Schedule above.
A64: i - Verify that the total # of payments in cell B4 is the same as the sum of col C (cell C16).
A66: Additional Lease Payment Receivable Lines (if needed) | B66: Amount | C66: # of Payments
A67: Payment Amount #5 & # of Payments at this amount | B67: 0 | C67: 0
A68: Payment Amount #6 & # of Payments at this amount | B68: 0 | C68: 0
A69: Payment Amount #7 & # of Payments at this amount | B69: 0 | C69: 0
A70: Payment Amount #8 & # of Payments at this amount | B70: 0 | C70: 0
A71: Payment Amount #9 & # of Payments at this amount | B71: 0 | C71: 0
A72: Payment Amount #10 & # of Payments at this amount | B72: 0 | C72: 0
A73: Payment Amount #11 & # of Payments at this amount | B73: 0 | C73: 0
A74: Payment Amount #12 & # of Payments at this amount | B74: 0 | C74: 0
A75: Payment Amount #13 & # of Payments at this amount | B75: 0 | C75: 0
A76: Payment Amount #14 & # of Payments at this amount | B76: 0 | C76: 0
A77: Payment Amount #15 & # of Payments at this amount | B77: 0 | C77: 0
A78: Payment Amount #16 & # of Payments at this amount | B78: 0 | C78: 0
A79: Payment Amount #17 & # of Payments at this amount | B79: 0 | C79: 0
A80: Payment Amount #18 & # of Payments at this amount | B80: 0 | C80: 0
A81: Payment Amount #19 & # of Payments at this amount | B81: 0 | C81: 0
A82: Payment Amount #20 & # of Payments at this amount | B82: 0 | C82: 0
A83: Payment Amount #21 & # of Payments at this amount | B83: 0 | C83: 0
A84: Payment Amount #22 & # of Payments at this amount | B84: 0 | C84: 0
A85: Payment Amount #23 & # of Payments at this amount | B85: 0 | C85: 0
A86: Payment Amount #24 & # of Payments at this amount | B86: 0 | C86: 0
A87: Payment Amount #25 & # of Payments at this amount | B87: 0 | C87: 0
A88: Total Add'l Lease Payment Amts (will automatically be added to the Schedule above) | B88: =(B67*C67)+(B68*C68)+(B69*C69)+(B70*C70)+(B71*C71)+(B72*C72)+(B73*C73)+(B74*C74)+(B75*C75)+(B76*C76)+(B77*C77)+(B78*C78)+(B79*C79)+(B80*C80)+(B81*C81)+(B82*C82)+(B83*C83)+(B84*C84)+(B85*C85)+(B86*C86)+(B87*C87) -> 0 | C88: =SUM(C67:C87) -> 0
A90: Step 2 - Fill out the "Other Payment Considerations" section (starting on row 18) ONLY if instructed to do so on the Data Input tab
A91: (responses from Data Input tab are shown in col D).
A92: a - The Residual Value Guarantee line should only have an amount listed in Col B if it is Fixed In-Substance and not reliant on a future
A93: consideration (i.e. FMV of leased asset).
A94: b - The Allowance for Uncollectible Leases line should only have an amount listed in col C if economic circumstances, lessee
A95: creditworthiness, and historic information indicate a need for an allowance to be calculated. This amount is listed in col C because
A96: it will not be calculated as part of the Present Value of the Lease Receivable, but will instead reduce the Present Value after it is
A97: calculated as a contra-receivable.
A99: Steps 3 - 8 are OPTIONAL (calculation of Present Value and Amortization Tables)
A100: Step 3 - Click the Macro button below to Generate the first 2 columns of the Present Value (PV) Table.
A103: Step 4 - Using the Payment Receivable Schedule filled out in Steps 1 & 2, fill in the Payment Amounts into col F of the PV Table.
A104: a - If there are 12 payments for the 1st payment amount, and 6 payments for the 2nd payment amount, list the 1st amount in the
A105: first 12 rows of the Table, then the 2nd amount for the next 6 rows, and do the same for the remaining payment amounts listed
A106: in the Payment Schedule until all the payments are filled in on the Table.
A107: b - Make sure not to skip any Free Rent periods. If the Payment Schedule indicates the 13th payment is $0, then row 13 of the
A108: Table should be $0, same as the Payment Schedule.
A109: c - If there are any amounts listed for "Other Payment Considerations", add it to the final payment. For example, if the final
A110: payment is $20,000, and there is a Residual Value Guarantee listed for $5,000, then the final payment in the Table should be $25,000.
A111: d - Check to make sure that the sum of all the payments entered into col F of the Table is the same as the Total Undiscounted Cash
A112: Flows in cell B23.
A114: Step 5 - Click the Macro button below to Calculate Net Present Value and Generate the PV and Amortization Tables.
A118: Step 6 - Check data for accuracy:
A119: a - Check the date of the final payment in the Amortization Table and compare to Lease End Date in cell B8. Make sure the final
A120: payment date is reasonable in comparison to the Lease End Date (within same month if payments are Monthly, within the final
A121: quarter if Quarterly, etc).
A122: b - If payments change (there are amounts in Payment Amount #2 + rows), then check the dates the amounts change in the
A123: Amort Table (columns K & M) to make sure the payments change on the correct dates as per the Lease Contract.
A124: c - If 6a and 6b are BOTH correct, skip to Step 8 (Do NOT click the Start Over Macro Button).
A125: d - If 6a or 6b does not appear to be correct:
A126: i - Double-check the Instructions above (Steps 1 - 6), including the check for # of payments in 1i & check for Table payments in 4d.
A127: ii - Double-check cells B2-B8 by reviewing the Lease Contract. These cells automatically filled based on answers in the Data Input
A128: tab. Make any necessary corrections in the Data Input tab (NOT in cells B2-B8) - the corresponding question #s are referenced above.
A129: iii - Double-Check the Payment Schedule and Other Payment Considerations sections. Compare back to the Lease contract to
A130: verify, and correct as necessary.
A131: e - Once corrections have been made, click the Macro button below to Delete the PV & Amortization Tables.
A135: Step 7 - Repeat Steps 3-6 as needed until all checks (1i, 4d, 6a, 6b, and 6di-6diii) are correct.
A137: Step 8 - See Net Present Value calculated in cell B25 for the Lease Receivable and the Deferred Inflow of Resources in cell B28.
A138: Also, see Present Value Table in columns E-G,
A139: and Amortization Table in columns J-P.

Sheet VLookup
A1: Asset Type | B1: For | D1: Useful Life in Months
A2: Constructed Building | B2: Office Space | C2: =CONCATENATE(A2," - ",B2) -> Constructed Building - Office Space | D2: 480
A3: Manufactured Building (non-permanent) | B3: Office Space | C3: Manufactured Building (non-permanent) - Office Space | D3: 300
A4: Vehicles | B4: Aircraft | C4: Vehicles - Aircraft | D4: 180
A5: Vehicles | B5: Heavy Duty Truck | C5: Vehicles - Heavy Duty Truck | D5: 84
A6: Vehicles | B6: Regular truck/car | C6: Vehicles - Regular truck/car | D6: 60
A7: Equipment | B7: Furniture | C7: Equipment - Furniture | D7: 60
A8: Equipment | B8: IT Equipment | C8: Equipment - IT Equipment | D8: 60
A9: Equipment | B9: Telecommunications | C9: Equipment - Telecommunications | D9: 60
A10: Equipment | B10: Other Office Equipment | C10: Equipment - Other Office Equipment | D10: 60
A11: Land | C11: Land | D11: N/A
C12: Right-of-way | D12: N/A
A14: Fixed Asset Catalog Description | C14: Useful Life in Months
A15: Leased Constructed Buildings (Office Space) | C15: 480
A16: Leased Buildings: Prefabricated (Office Space) | C16: 300
A17: Leased Mainframe Computer | C17: 60
A18: Leased Servers | C18: 60
A19: Leased Desktop Computer | C19: 60
A20: Leased Multifunction (print/scan/fax/copy) workgroup printer | C20: 60
A21: Leased Airplane | C21: 180
A22: Leased Automobiles & Station Wagons | C22: 60
A23: Leased Trucks (Heavy) | C23: 84
A24: Leased Mass Transportation: Transit Bus | C24: 84
A25: Leased Radio, Sound and Telecomm. Equipment | C25: 60
A26: Leased Land Improvements | C26: 480
A27: Leased Improvements Other than Land & Building Improvements | C27: 180
A28: Leased Tangible Rights of Way | C28: Use contract term
A29: Leased Land | C29: Use contract term

Sheet Drop Down List
A2: Asset Type
A3: Land
A4: Building
A5: Equipment
A6: Other
A8: Payment System
A9: AFIS
A10: APP
A12: Yes / No / N/A
A13: Yes
A14: No
A15: N/A
A18: Payment frequency
A19: Monthly
A20: Quarterly
A21: Semi-annually
A22: Annually
A24: Payment B or E
A25: Begin
A26: End
A28: Payments Equal?
A29: Yes
A30: No - Fill out PV Calc Tab
A31: N/A
A33: Purchase Option / Termination Penalty/Residual Value Guarantee?
A34: Yes - Fill out PV Calc Tab
A35: No
A36: N/A
A38: single / divided COA
A39: Single COA
A40: Divided - Fill out Gen Extra Info Tab
A42: Type of Division
A43: Specific $ Amount Split
A44: Percentage (%) Split
A46: Termination Option
A47: Yes - use Expected End Date for Lease End Date
A48: No
A49: N/A
